{"text_format":"3","workbook":"xlsx","n_sheets":3,"sheets":["ข้อมูลแผนการทำงาน","แผนการทำงาน Agile","เกี่ยวกับ"],"not_rendered":{"defined_names":5},"read":"whole","date_system":"1900"}

{"sheet":"ข้อมูลแผนการทำงาน","index":0,"n_rows":13,"n_cols":7,"rows_kept":13,"merged":[[12,1,12,4]]}
["สร้างแผนการทำงาน Agile โดยการใส่หลักเป้าหมายหรือกิจกรรมที่สำคัญในตารางข้อมูลแผนการทำงานในเวิร์กชีตนี้\nชื่อเรื่องของเวิร์กชีตอยู่ในเซลล์ B1 \nข้อมูลเกี่ยวกับวิธีการใช้เวิร์กชีตนี้ รวมถึงคำแนะนำสำหรับโปรแกรมอ่านหน้าจอได้ใน เกี่ยวกับเวิร์กชีต\nดำเนินการต่อโดยนำทางลงในคอลัมน์ A สำหรับคำแนะนำเพิ่มเติม","ข้อมูลเส้นเวลา Agile"]
["ส่วนหัวของตารางอยู่ในเซลล์ B2 ถึง E2 ใช้ตัวกรองส่วนหัวเพื่อเรียงลำดับและค้นหารายการเฉพาะ\nแผนการทำงาน Agile จะทำงานได้ดีที่สุดเมื่อตารางถูกเรียงลำดับตามลำดับความสำคัญ หลักเป้าหมาย หรือกิจกรรมจากน้อยไปมาก\nข้อมูลตัวอย่างอยู่ในตารางข้อมูลแผนการทำงานจากเซลล์ B3 ถึง E12 \nเมื่อหลักเป้าหมายหรือกิจกรรมเสร็จสมบูรณ์แล้ว ให้อัปเดตเขตข้อมูลผลลัพธ์ที่สอดคล้องกันเพื่อแสดงผลลัพธ์ในเวิร์กชีตแผนการทำงาน Agile ใส่ \"ไม่มีการเปลี่ยนแปลง\" เพื่อเน้นหลักเป้าหมายที่ไม่มีผลกระทบ\nไปที่เซลล์ A13 สำหรับคำแนะนำถัดไป\n","เป้าหมาย","หลักการทำงานหรือกิจกรรม","ลำดับความสำคัญ","ผลลัพธ์",null,"<-- เรียงลำดับตารางตามลำดับความสำคัญและหลักเป้าหมาย หรือกิจกรรม จากน้อยไปหามาก"]
[null,"ปัจจุบัน","กิจกรรม 1\nสร้างต้นแบบ","1 - สูง",null,null,"<-- เพิ่มผลลัพธ์สำหรับหลักเป้าหมายแต่ละหลักที่เสร็จสมบูรณ์ ใส่ \"ไม่มีการเปลี่ยนแปลง\" เพื่อเน้นหลักเป้าหมายที่ไม่มีผลกระทบ"]
[null,"ระยะเวลาอันใกล้","กิจกรรม 2\nต้นแบบรุ่นสาธิต","1 - สูง"]
[null,"ปัจจุบัน","กิจกรรม 6","1 - สูง"]
[null,"ในอนาคต","กิจกรรม 7\nการพัฒนาภายนอกของการดำเนินการขั้นตอนที่หนึ่ง","1 - สูง"]
[null,"เสร็จสมบูรณ์แล้ว","กิจกรรม 9\nขั้นตอนที่หนึ่งได้รับอนุมัติ","1 - สูง","ลดลง 10%"]
[null,"ในอนาคต","กิจกรรม 10","2 - กลาง"]
[null,"ระยะเวลาอันใกล้","กิจกรรม 8","2 - กลาง"]
[null,"เสร็จสมบูรณ์แล้ว","กิจกรรม 3","3 - ต่ำ","ไม่มีการเปลี่ยนแปลง"]
[null,"ในอนาคต","กิจกรรม 4","3 - ต่ำ"]
[null,"ปัจจุบัน","กิจกรรม 5","3 - ต่ำ"]
["เพิ่มรายการใหม่ ด้วยการแทรกแถวใหม่ลงในตารางเหนือบรรทัดนี้\nนี่คือคำแนะนำสุดท้ายในเวิร์กชีตนี้","เพิ่มรายการใหม่ ด้วยการแทรกแถวใหม่เหนือบรรทัดนี้"]

{"sheet":"แผนการทำงาน Agile","index":1,"n_rows":100,"n_cols":8,"rows_kept":100}
["แผนการดำเนินงาน Agile แสดงหลักเป้าหมายและกิจกรรมจากเวิร์กชีตข้อมูลของแผนการดำเนินงานจะอยู่ในเวิร์กชีตนี้ \nชื่อเรื่องอยู่ในเซลล์ B1 \nผลลัพธ์ที่มีวลี \"ไม่มีการเปลี่ยนแปลง\" จะถูกเน้นด้วยสีส้ม RGB(255, 230, 210)\nหลักเป้าหมายหรือกิจกรรมที่เสร็จสมบูรณ์จะถูกเน้นด้วยสีสีเขียว RGB(237,251,219)","แผนการทำงาน Agile"]
["ส่วนหัวของแผนภูมิอยู่ในเซลล์ B2, D2, F2 และ H2 พวกเขาอ่าน: เสร็จสมบูรณ์ ปัจจุบัน ระยะเวลาอันใกล้ และอนาคต แก้ไขหัวเรื่องเหล่านี้เพื่อเปลี่ยนค่าการเลือกเป้าหมายในตารางข้อมูลแผนการทำงานในเวิร์กชีตข้อมูลแผนการทำงาน\nเซลล์ B3 ผ่าน H20 ประกอบด้วยเป้าหมายและกิจกรรมสำหรับส่วนหัวในแถวนี้ \nหลักเป้าหมายและกิจกรรมจะถูกสร้างขึ้นในเวิร์กชีตข้อมูลแผนการทำงาน\nห้ามปรับเปลี่ยนหรือลบรายการในเวิร์กชีตนี้ อัปเดตตารางข้อมูลแผนการทำงานในเวิร์กชีตข้อมูลแผนการทำงานเพื่ออัปเดตเนื้อหาในเวิร์กชีตนี้\nนี่คือคำแนะนำสุดท้ายในเวิร์กชีตนี้","เสร็จสมบูรณ์แล้ว",null,"ปัจจุบัน",null,"ระยะเวลาอันใกล้",null,"ในอนาคต"]
[null,{"$f":"IFERROR(INDEX(กิจกรรม,SMALL(IF(เป้าหมาย=$B$2,ROW(กิจกรรม)-MIN(ROW(กิจกรรม))+1),ROWS($B$3:B3)))&\" \"&CHAR(10)&(INDEX(ผลลัพธ์,SMALL(IF(เป้าหมาย=$B$2,ROW(ผลลัพธ์)-MIN(ROW(ผลลัพธ์))+1),ROWS($B$3:B3))))&CHAR(10),\"\")","v":"กิจกรรม 9\nขั้นตอนที่หนึ่งได้รับอนุมัติ \nลดลง 10%\n"},null,{"$f":"IFERROR(INDEX(กิจกรรม,SMALL(IF(เป้าหมาย=$D$2,ROW(กิจกรรม)-MIN(ROW(กิจกรรม))+1),ROWS($B$3:B3)))&CHAR(10),\"\")","v":"กิจกรรม 1\nสร้างต้นแบบ\n"},null,{"$f":"IFERROR(INDEX(กิจกรรม,SMALL(IF(เป้าหมาย=$F$2,ROW(กิจกรรม)-MIN(ROW(กิจกรรม))+1),ROWS($B$3:B3)))&CHAR(10),\"\")","v":"กิจกรรม 2\nต้นแบบรุ่นสาธิต\n"},null,{"$f":"IFERROR(INDEX(กิจกรรม,SMALL(IF(เป้าหมาย=$H$2,ROW(กิจกรรม)-MIN(ROW(กิจกรรม))+1),ROWS($B$3:B3)))&CHAR(10),\"\")","v":"กิจกรรม 7\nการพัฒนาภายนอกของการดำเนินการขั้นตอนที่หนึ่ง\n"}]
[null,{"$f":"IFERROR(INDEX(กิจกรรม,SMALL(IF(เป้าหมาย=$B$2,ROW(กิจกรรม)-MIN(ROW(กิจกรรม))+1),ROWS($B$3:B4)))&\" \"&CHAR(10)&(INDEX(ผลลัพธ์,SMALL(IF(เป้าหมาย=$B$2,ROW(ผลลัพธ์)-MIN(ROW(ผลลัพธ์))+1),ROWS($B$3:B4))))&CHAR(10),\"\")","v":"กิจกรรม 3 \nไม่มีการเปลี่ยนแปลง\n"},null,{"$f":"IFERROR(INDEX(กิจกรรม,SMALL(IF(เป้าหมาย=$D$2,ROW(กิจกรรม)-MIN(ROW(กิจกรรม))+1),ROWS($B$3:B4)))&CHAR(10),\"\")","v":"กิจกรรม 6\n"},null,{"$f":"IFERROR(INDEX(กิจกรรม,SMALL(IF(เป้าหมาย=$F$2,ROW(กิจกรรม)-MIN(ROW(กิจกรรม))+1),ROWS($B$3:B4)))&CHAR(10),\"\")","v":"กิจกรรม 8\n"},null,{"$f":"IFERROR(INDEX(กิจกรรม,SMALL(IF(เป้าหมาย=$H$2,ROW(กิจกรรม)-MIN(ROW(กิจกรรม))+1),ROWS($B$3:B4)))&CHAR(10),\"\")","v":"กิจกรรม 10\n"}]
[null,{"$f":"IFERROR(INDEX(กิจกรรม,SMALL(IF(เป้าหมาย=$B$2,ROW(กิจกรรม)-MIN(ROW(กิจกรรม))+1),ROWS($B$3:B5)))&\" \"&CHAR(10)&(INDEX(ผลลัพธ์,SMALL(IF(เป้าหมาย=$B$2,ROW(ผลลัพธ์)-MIN(ROW(ผลลัพธ์))+1),ROWS($B$3:B5))))&CHAR(10),\"\")","v":""},null,{"$f":"IFERROR(INDEX(กิจกรรม,SMALL(IF(เป้าหมาย=$D$2,ROW(กิจกรรม)-MIN(ROW(กิจกรรม))+1),ROWS($B$3:B5)))&CHAR(10),\"\")","v":"กิจกรรม 5\n"},null,{"$f":"IFERROR(INDEX(กิจกรรม,SMALL(IF(เป้าหมาย=$F$2,ROW(กิจกรรม)-MIN(ROW(กิจกรรม))+1),ROWS($B$3:B5)))&CHAR(10),\"\")","v":""},null,{"$f":"IFERROR(INDEX(กิจกรรม,SMALL(IF(เป้าหมาย=$H$2,ROW(กิจกรรม)-MIN(ROW(กิจกรรม))+1),ROWS($B$3:B5)))&CHAR(10),\"\")","v":"กิจกรรม 4\n"}]
[null,{"$f":"IFERROR(INDEX(กิจกรรม,SMALL(IF(เป้าหมาย=$B$2,ROW(กิจกรรม)-MIN(ROW(กิจกรรม))+1),ROWS($B$3:B6)))&\" \"&CHAR(10)&(INDEX(ผลลัพธ์,SMALL(IF(เป้าหมาย=$B$2,ROW(ผลลัพธ์)-MIN(ROW(ผลลัพธ์))+1),ROWS($B$3:B6))))&CHAR(10),\"\")","v":""},null,{"$f":"IFERROR(INDEX(กิจกรรม,SMALL(IF(เป้าหมาย=$D$2,ROW(กิจกรรม)-MIN(ROW(กิจกรรม))+1),ROWS($B$3:B6)))&CHAR(10),\"\")","v":""},null,{"$f":"IFERROR(INDEX(กิจกรรม,SMALL(IF(เป้าหมาย=$F$2,ROW(กิจกรรม)-MIN(ROW(กิจกรรม))+1),ROWS($B$3:B6)))&CHAR(10),\"\")","v":""},null,{"$f":"IFERROR(INDEX(กิจกรรม,SMALL(IF(เป้าหมาย=$H$2,ROW(กิจกรรม)-MIN(ROW(กิจกรรม))+1),ROWS($B$3:B6)))&CHAR(10),\"\")","v":""}]
[null,{"$f":"IFERROR(INDEX(กิจกรรม,SMALL(IF(เป้าหมาย=$B$2,ROW(กิจกรรม)-MIN(ROW(กิจกรรม))+1),ROWS($B$3:B7)))&\" \"&CHAR(10)&(INDEX(ผลลัพธ์,SMALL(IF(เป้าหมาย=$B$2,ROW(ผลลัพธ์)-MIN(ROW(ผลลัพธ์))+1),ROWS($B$3:B7))))&CHAR(10),\"\")","v":""},null,{"$f":"IFERROR(INDEX(กิจกรรม,SMALL(IF(เป้าหมาย=$D$2,ROW(กิจกรรม)-MIN(ROW(กิจกรรม))+1),ROWS($B$3:B7)))&CHAR(10),\"\")","v":""},null,{"$f":"IFERROR(INDEX(กิจกรรม,SMALL(IF(เป้าหมาย=$F$2,ROW(กิจกรรม)-MIN(ROW(กิจกรรม))+1),ROWS($B$3:B7)))&CHAR(10),\"\")","v":""},null,{"$f":"IFERROR(INDEX(กิจกรรม,SMALL(IF(เป้าหมาย=$H$2,ROW(กิจกรรม)-MIN(ROW(กิจกรรม))+1),ROWS($B$3:B7)))&CHAR(10),\"\")","v":""}]
[null,{"$f":"IFERROR(INDEX(กิจกรรม,SMALL(IF(เป้าหมาย=$B$2,ROW(กิจกรรม)-MIN(ROW(กิจกรรม))+1),ROWS($B$3:B8)))&\" \"&CHAR(10)&(INDEX(ผลลัพธ์,SMALL(IF(เป้าหมาย=$B$2,ROW(ผลลัพธ์)-MIN(ROW(ผลลัพธ์))+1),ROWS($B$3:B8))))&CHAR(10),\"\")","v":""},null,{"$f":"IFERROR(INDEX(กิจกรรม,SMALL(IF(เป้าหมาย=$D$2,ROW(กิจกรรม)-MIN(ROW(กิจกรรม))+1),ROWS($B$3:B8)))&CHAR(10),\"\")","v":""},null,{"$f":"IFERROR(INDEX(กิจกรรม,SMALL(IF(เป้าหมาย=$F$2,ROW(กิจกรรม)-MIN(ROW(กิจกรรม))+1),ROWS($B$3:B8)))&CHAR(10),\"\")","v":""},null,{"$f":"IFERROR(INDEX(กิจกรรม,SMALL(IF(เป้าหมาย=$H$2,ROW(กิจกรรม)-MIN(ROW(กิจกรรม))+1),ROWS($B$3:B8)))&CHAR(10),\"\")","v":""}]
[null,{"$f":"IFERROR(INDEX(กิจกรรม,SMALL(IF(เป้าหมาย=$B$2,ROW(กิจกรรม)-MIN(ROW(กิจกรรม))+1),ROWS($B$3:B9)))&\" \"&CHAR(10)&(INDEX(ผลลัพธ์,SMALL(IF(เป้าหมาย=$B$2,ROW(ผลลัพธ์)-MIN(ROW(ผลลัพธ์))+1),ROWS($B$3:B9))))&CHAR(10),\"\")","v":""},null,{"$f":"IFERROR(INDEX(กิจกรรม,SMALL(IF(เป้าหมาย=$D$2,ROW(กิจกรรม)-MIN(ROW(กิจกรรม))+1),ROWS($B$3:B9)))&CHAR(10),\"\")","v":""},null,{"$f":"IFERROR(INDEX(กิจกรรม,SMALL(IF(เป้าหมาย=$F$2,ROW(กิจกรรม)-MIN(ROW(กิจกรรม))+1),ROWS($B$3:B9)))&CHAR(10),\"\")","v":""},null,{"$f":"IFERROR(INDEX(กิจกรรม,SMALL(IF(เป้าหมาย=$H$2,ROW(กิจกรรม)-MIN(ROW(กิจกรรม))+1),ROWS($B$3:B9)))&CHAR(10),\"\")","v":""}]
[null,{"$f":"IFERROR(INDEX(กิจกรรม,SMALL(IF(เป้าหมาย=$B$2,ROW(กิจกรรม)-MIN(ROW(กิจกรรม))+1),ROWS($B$3:B10)))&\" \"&CHAR(10)&(INDEX(ผลลัพธ์,SMALL(IF(เป้าหมาย=$B$2,ROW(ผลลัพธ์)-MIN(ROW(ผลลัพธ์))+1),ROWS($B$3:B10))))&CHAR(10),\"\")","v":""},null,{"$f":"IFERROR(INDEX(กิจกรรม,SMALL(IF(เป้าหมาย=$D$2,ROW(กิจกรรม)-MIN(ROW(กิจกรรม))+1),ROWS($B$3:B10)))&CHAR(10),\"\")","v":""},null,{"$f":"IFERROR(INDEX(กิจกรรม,SMALL(IF(เป้าหมาย=$F$2,ROW(กิจกรรม)-MIN(ROW(กิจกรรม))+1),ROWS($B$3:B10)))&CHAR(10),\"\")","v":""},null,{"$f":"IFERROR(INDEX(กิจกรรม,SMALL(IF(เป้าหมาย=$H$2,ROW(กิจกรรม)-MIN(ROW(กิจกรรม))+1),ROWS($B$3:B10)))&CHAR(10),\"\")","v":""}]
[null,{"$f":"IFERROR(INDEX(กิจกรรม,SMALL(IF(เป้าหมาย=$B$2,ROW(กิจกรรม)-MIN(ROW(กิจกรรม))+1),ROWS($B$3:B11)))&\" \"&CHAR(10)&(INDEX(ผลลัพธ์,SMALL(IF(เป้าหมาย=$B$2,ROW(ผลลัพธ์)-MIN(ROW(ผลลัพธ์))+1),ROWS($B$3:B11))))&CHAR(10),\"\")","v":""},null,{"$f":"IFERROR(INDEX(กิจกรรม,SMALL(IF(เป้าหมาย=$D$2,ROW(กิจกรรม)-MIN(ROW(กิจกรรม))+1),ROWS($B$3:B11)))&CHAR(10),\"\")","v":""},null,{"$f":"IFERROR(INDEX(กิจกรรม,SMALL(IF(เป้าหมาย=$F$2,ROW(กิจกรรม)-MIN(ROW(กิจกรรม))+1),ROWS($B$3:B11)))&CHAR(10),\"\")","v":""},null,{"$f":"IFERROR(INDEX(กิจกรรม,SMALL(IF(เป้าหมาย=$H$2,ROW(กิจกรรม)-MIN(ROW(กิจกรรม))+1),ROWS($B$3:B11)))&CHAR(10),\"\")","v":""}]
[null,{"$f":"IFERROR(INDEX(กิจกรรม,SMALL(IF(เป้าหมาย=$B$2,ROW(กิจกรรม)-MIN(ROW(กิจกรรม))+1),ROWS($B$3:B12)))&\" \"&CHAR(10)&(INDEX(ผลลัพธ์,SMALL(IF(เป้าหมาย=$B$2,ROW(ผลลัพธ์)-MIN(ROW(ผลลัพธ์))+1),ROWS($B$3:B12))))&CHAR(10),\"\")","v":""},null,{"$f":"IFERROR(INDEX(กิจกรรม,SMALL(IF(เป้าหมาย=$D$2,ROW(กิจกรรม)-MIN(ROW(กิจกรรม))+1),ROWS($B$3:B12)))&CHAR(10),\"\")","v":""},null,{"$f":"IFERROR(INDEX(กิจกรรม,SMALL(IF(เป้าหมาย=$F$2,ROW(กิจกรรม)-MIN(ROW(กิจกรรม))+1),ROWS($B$3:B12)))&CHAR(10),\"\")","v":""},null,{"$f":"IFERROR(INDEX(กิจกรรม,SMALL(IF(เป้าหมาย=$H$2,ROW(กิจกรรม)-MIN(ROW(กิจกรรม))+1),ROWS($B$3:B12)))&CHAR(10),\"\")","v":""}]
[null,{"$f":"IFERROR(INDEX(กิจกรรม,SMALL(IF(เป้าหมาย=$B$2,ROW(กิจกรรม)-MIN(ROW(กิจกรรม))+1),ROWS($B$3:B13)))&\" \"&CHAR(10)&(INDEX(ผลลัพธ์,SMALL(IF(เป้าหมาย=$B$2,ROW(ผลลัพธ์)-MIN(ROW(ผลลัพธ์))+1),ROWS($B$3:B13))))&CHAR(10),\"\")","v":""},null,{"$f":"IFERROR(INDEX(กิจกรรม,SMALL(IF(เป้าหมาย=$D$2,ROW(กิจกรรม)-MIN(ROW(กิจกรรม))+1),ROWS($B$3:B13)))&CHAR(10),\"\")","v":""},null,{"$f":"IFERROR(INDEX(กิจกรรม,SMALL(IF(เป้าหมาย=$F$2,ROW(กิจกรรม)-MIN(ROW(กิจกรรม))+1),ROWS($B$3:B13)))&CHAR(10),\"\")","v":""},null,{"$f":"IFERROR(INDEX(กิจกรรม,SMALL(IF(เป้าหมาย=$H$2,ROW(กิจกรรม)-MIN(ROW(กิจกรรม))+1),ROWS($B$3:B13)))&CHAR(10),\"\")","v":""}]
[null,{"$f":"IFERROR(INDEX(กิจกรรม,SMALL(IF(เป้าหมาย=$B$2,ROW(กิจกรรม)-MIN(ROW(กิจกรรม))+1),ROWS($B$3:B14)))&\" \"&CHAR(10)&(INDEX(ผลลัพธ์,SMALL(IF(เป้าหมาย=$B$2,ROW(ผลลัพธ์)-MIN(ROW(ผลลัพธ์))+1),ROWS($B$3:B14))))&CHAR(10),\"\")","v":""},null,{"$f":"IFERROR(INDEX(กิจกรรม,SMALL(IF(เป้าหมาย=$D$2,ROW(กิจกรรม)-MIN(ROW(กิจกรรม))+1),ROWS($B$3:B14)))&CHAR(10),\"\")","v":""},null,{"$f":"IFERROR(INDEX(กิจกรรม,SMALL(IF(เป้าหมาย=$F$2,ROW(กิจกรรม)-MIN(ROW(กิจกรรม))+1),ROWS($B$3:B14)))&CHAR(10),\"\")","v":""},null,{"$f":"IFERROR(INDEX(กิจกรรม,SMALL(IF(เป้าหมาย=$H$2,ROW(กิจกรรม)-MIN(ROW(กิจกรรม))+1),ROWS($B$3:B14)))&CHAR(10),\"\")","v":""}]
[null,{"$f":"IFERROR(INDEX(กิจกรรม,SMALL(IF(เป้าหมาย=$B$2,ROW(กิจกรรม)-MIN(ROW(กิจกรรม))+1),ROWS($B$3:B15)))&\" \"&CHAR(10)&(INDEX(ผลลัพธ์,SMALL(IF(เป้าหมาย=$B$2,ROW(ผลลัพธ์)-MIN(ROW(ผลลัพธ์))+1),ROWS($B$3:B15))))&CHAR(10),\"\")","v":""},null,{"$f":"IFERROR(INDEX(กิจกรรม,SMALL(IF(เป้าหมาย=$D$2,ROW(กิจกรรม)-MIN(ROW(กิจกรรม))+1),ROWS($B$3:B15)))&CHAR(10),\"\")","v":""},null,{"$f":"IFERROR(INDEX(กิจกรรม,SMALL(IF(เป้าหมาย=$F$2,ROW(กิจกรรม)-MIN(ROW(กิจกรรม))+1),ROWS($B$3:B15)))&CHAR(10),\"\")","v":""},null,{"$f":"IFERROR(INDEX(กิจกรรม,SMALL(IF(เป้าหมาย=$H$2,ROW(กิจกรรม)-MIN(ROW(กิจกรรม))+1),ROWS($B$3:B15)))&CHAR(10),\"\")","v":""}]
[null,{"$f":"IFERROR(INDEX(กิจกรรม,SMALL(IF(เป้าหมาย=$B$2,ROW(กิจกรรม)-MIN(ROW(กิจกรรม))+1),ROWS($B$3:B16)))&\" \"&CHAR(10)&(INDEX(ผลลัพธ์,SMALL(IF(เป้าหมาย=$B$2,ROW(ผลลัพธ์)-MIN(ROW(ผลลัพธ์))+1),ROWS($B$3:B16))))&CHAR(10),\"\")","v":""},null,{"$f":"IFERROR(INDEX(กิจกรรม,SMALL(IF(เป้าหมาย=$D$2,ROW(กิจกรรม)-MIN(ROW(กิจกรรม))+1),ROWS($B$3:B16)))&CHAR(10),\"\")","v":""},null,{"$f":"IFERROR(INDEX(กิจกรรม,SMALL(IF(เป้าหมาย=$F$2,ROW(กิจกรรม)-MIN(ROW(กิจกรรม))+1),ROWS($B$3:B16)))&CHAR(10),\"\")","v":""},null,{"$f":"IFERROR(INDEX(กิจกรรม,SMALL(IF(เป้าหมาย=$H$2,ROW(กิจกรรม)-MIN(ROW(กิจกรรม))+1),ROWS($B$3:B16)))&CHAR(10),\"\")","v":""}]
[null,{"$f":"IFERROR(INDEX(กิจกรรม,SMALL(IF(เป้าหมาย=$B$2,ROW(กิจกรรม)-MIN(ROW(กิจกรรม))+1),ROWS($B$3:B17)))&\" \"&CHAR(10)&(INDEX(ผลลัพธ์,SMALL(IF(เป้าหมาย=$B$2,ROW(ผลลัพธ์)-MIN(ROW(ผลลัพธ์))+1),ROWS($B$3:B17))))&CHAR(10),\"\")","v":""},null,{"$f":"IFERROR(INDEX(กิจกรรม,SMALL(IF(เป้าหมาย=$D$2,ROW(กิจกรรม)-MIN(ROW(กิจกรรม))+1),ROWS($B$3:B17)))&CHAR(10),\"\")","v":""},null,{"$f":"IFERROR(INDEX(กิจกรรม,SMALL(IF(เป้าหมาย=$F$2,ROW(กิจกรรม)-MIN(ROW(กิจกรรม))+1),ROWS($B$3:B17)))&CHAR(10),\"\")","v":""},null,{"$f":"IFERROR(INDEX(กิจกรรม,SMALL(IF(เป้าหมาย=$H$2,ROW(กิจกรรม)-MIN(ROW(กิจกรรม))+1),ROWS($B$3:B17)))&CHAR(10),\"\")","v":""}]
[null,{"$f":"IFERROR(INDEX(กิจกรรม,SMALL(IF(เป้าหมาย=$B$2,ROW(กิจกรรม)-MIN(ROW(กิจกรรม))+1),ROWS($B$3:B18)))&\" \"&CHAR(10)&(INDEX(ผลลัพธ์,SMALL(IF(เป้าหมาย=$B$2,ROW(ผลลัพธ์)-MIN(ROW(ผลลัพธ์))+1),ROWS($B$3:B18))))&CHAR(10),\"\")","v":""},null,{"$f":"IFERROR(INDEX(กิจกรรม,SMALL(IF(เป้าหมาย=$D$2,ROW(กิจกรรม)-MIN(ROW(กิจกรรม))+1),ROWS($B$3:B18)))&CHAR(10),\"\")","v":""},null,{"$f":"IFERROR(INDEX(กิจกรรม,SMALL(IF(เป้าหมาย=$F$2,ROW(กิจกรรม)-MIN(ROW(กิจกรรม))+1),ROWS($B$3:B18)))&CHAR(10),\"\")","v":""},null,{"$f":"IFERROR(INDEX(กิจกรรม,SMALL(IF(เป้าหมาย=$H$2,ROW(กิจกรรม)-MIN(ROW(กิจกรรม))+1),ROWS($B$3:B18)))&CHAR(10),\"\")","v":""}]
[null,{"$f":"IFERROR(INDEX(กิจกรรม,SMALL(IF(เป้าหมาย=$B$2,ROW(กิจกรรม)-MIN(ROW(กิจกรรม))+1),ROWS($B$3:B19)))&\" \"&CHAR(10)&(INDEX(ผลลัพธ์,SMALL(IF(เป้าหมาย=$B$2,ROW(ผลลัพธ์)-MIN(ROW(ผลลัพธ์))+1),ROWS($B$3:B19))))&CHAR(10),\"\")","v":""},null,{"$f":"IFERROR(INDEX(กิจกรรม,SMALL(IF(เป้าหมาย=$D$2,ROW(กิจกรรม)-MIN(ROW(กิจกรรม))+1),ROWS($B$3:B19)))&CHAR(10),\"\")","v":""},null,{"$f":"IFERROR(INDEX(กิจกรรม,SMALL(IF(เป้าหมาย=$F$2,ROW(กิจกรรม)-MIN(ROW(กิจกรรม))+1),ROWS($B$3:B19)))&CHAR(10),\"\")","v":""},null,{"$f":"IFERROR(INDEX(กิจกรรม,SMALL(IF(เป้าหมาย=$H$2,ROW(กิจกรรม)-MIN(ROW(กิจกรรม))+1),ROWS($B$3:B19)))&CHAR(10),\"\")","v":""}]
[null,{"$f":"IFERROR(INDEX(กิจกรรม,SMALL(IF(เป้าหมาย=$B$2,ROW(กิจกรรม)-MIN(ROW(กิจกรรม))+1),ROWS($B$3:B20)))&\" \"&CHAR(10)&(INDEX(ผลลัพธ์,SMALL(IF(เป้าหมาย=$B$2,ROW(ผลลัพธ์)-MIN(ROW(ผลลัพธ์))+1),ROWS($B$3:B20))))&CHAR(10),\"\")","v":""},null,{"$f":"IFERROR(INDEX(กิจกรรม,SMALL(IF(เป้าหมาย=$D$2,ROW(กิจกรรม)-MIN(ROW(กิจกรรม))+1),ROWS($B$3:B20)))&CHAR(10),\"\")","v":""},null,{"$f":"IFERROR(INDEX(กิจกรรม,SMALL(IF(เป้าหมาย=$F$2,ROW(กิจกรรม)-MIN(ROW(กิจกรรม))+1),ROWS($B$3:B20)))&CHAR(10),\"\")","v":""},null,{"$f":"IFERROR(INDEX(กิจกรรม,SMALL(IF(เป้าหมาย=$H$2,ROW(กิจกรรม)-MIN(ROW(กิจกรรม))+1),ROWS($B$3:B20)))&CHAR(10),\"\")","v":""}]
[null,{"$f":"IFERROR(INDEX(กิจกรรม,SMALL(IF(เป้าหมาย=$B$2,ROW(กิจกรรม)-MIN(ROW(กิจกรรม))+1),ROWS($B$3:B21)))&\" \"&CHAR(10)&(INDEX(ผลลัพธ์,SMALL(IF(เป้าหมาย=$B$2,ROW(ผลลัพธ์)-MIN(ROW(ผลลัพธ์))+1),ROWS($B$3:B21))))&CHAR(10),\"\")","v":""},null,{"$f":"IFERROR(INDEX(กิจกรรม,SMALL(IF(เป้าหมาย=$D$2,ROW(กิจกรรม)-MIN(ROW(กิจกรรม))+1),ROWS($B$3:B21)))&CHAR(10),\"\")","v":""},null,{"$f":"IFERROR(INDEX(กิจกรรม,SMALL(IF(เป้าหมาย=$F$2,ROW(กิจกรรม)-MIN(ROW(กิจกรรม))+1),ROWS($B$3:B21)))&CHAR(10),\"\")","v":""},null,{"$f":"IFERROR(INDEX(กิจกรรม,SMALL(IF(เป้าหมาย=$H$2,ROW(กิจกรรม)-MIN(ROW(กิจกรรม))+1),ROWS($B$3:B21)))&CHAR(10),\"\")","v":""}]
[null,{"$f":"IFERROR(INDEX(กิจกรรม,SMALL(IF(เป้าหมาย=$B$2,ROW(กิจกรรม)-MIN(ROW(กิจกรรม))+1),ROWS($B$3:B22)))&\" \"&CHAR(10)&(INDEX(ผลลัพธ์,SMALL(IF(เป้าหมาย=$B$2,ROW(ผลลัพธ์)-MIN(ROW(ผลลัพธ์))+1),ROWS($B$3:B22))))&CHAR(10),\"\")","v":""},null,{"$f":"IFERROR(INDEX(กิจกรรม,SMALL(IF(เป้าหมาย=$D$2,ROW(กิจกรรม)-MIN(ROW(กิจกรรม))+1),ROWS($B$3:B22)))&CHAR(10),\"\")","v":""},null,{"$f":"IFERROR(INDEX(กิจกรรม,SMALL(IF(เป้าหมาย=$F$2,ROW(กิจกรรม)-MIN(ROW(กิจกรรม))+1),ROWS($B$3:B22)))&CHAR(10),\"\")","v":""},null,{"$f":"IFERROR(INDEX(กิจกรรม,SMALL(IF(เป้าหมาย=$H$2,ROW(กิจกรรม)-MIN(ROW(กิจกรรม))+1),ROWS($B$3:B22)))&CHAR(10),\"\")","v":""}]
[null,{"$f":"IFERROR(INDEX(กิจกรรม,SMALL(IF(เป้าหมาย=$B$2,ROW(กิจกรรม)-MIN(ROW(กิจกรรม))+1),ROWS($B$3:B23)))&\" \"&CHAR(10)&(INDEX(ผลลัพธ์,SMALL(IF(เป้าหมาย=$B$2,ROW(ผลลัพธ์)-MIN(ROW(ผลลัพธ์))+1),ROWS($B$3:B23))))&CHAR(10),\"\")","v":""},null,{"$f":"IFERROR(INDEX(กิจกรรม,SMALL(IF(เป้าหมาย=$D$2,ROW(กิจกรรม)-MIN(ROW(กิจกรรม))+1),ROWS($B$3:B23)))&CHAR(10),\"\")","v":""},null,{"$f":"IFERROR(INDEX(กิจกรรม,SMALL(IF(เป้าหมาย=$F$2,ROW(กิจกรรม)-MIN(ROW(กิจกรรม))+1),ROWS($B$3:B23)))&CHAR(10),\"\")","v":""},null,{"$f":"IFERROR(INDEX(กิจกรรม,SMALL(IF(เป้าหมาย=$H$2,ROW(กิจกรรม)-MIN(ROW(กิจกรรม))+1),ROWS($B$3:B23)))&CHAR(10),\"\")","v":""}]
[null,{"$f":"IFERROR(INDEX(กิจกรรม,SMALL(IF(เป้าหมาย=$B$2,ROW(กิจกรรม)-MIN(ROW(กิจกรรม))+1),ROWS($B$3:B24)))&\" \"&CHAR(10)&(INDEX(ผลลัพธ์,SMALL(IF(เป้าหมาย=$B$2,ROW(ผลลัพธ์)-MIN(ROW(ผลลัพธ์))+1),ROWS($B$3:B24))))&CHAR(10),\"\")","v":""},null,{"$f":"IFERROR(INDEX(กิจกรรม,SMALL(IF(เป้าหมาย=$D$2,ROW(กิจกรรม)-MIN(ROW(กิจกรรม))+1),ROWS($B$3:B24)))&CHAR(10),\"\")","v":""},null,{"$f":"IFERROR(INDEX(กิจกรรม,SMALL(IF(เป้าหมาย=$F$2,ROW(กิจกรรม)-MIN(ROW(กิจกรรม))+1),ROWS($B$3:B24)))&CHAR(10),\"\")","v":""},null,{"$f":"IFERROR(INDEX(กิจกรรม,SMALL(IF(เป้าหมาย=$H$2,ROW(กิจกรรม)-MIN(ROW(กิจกรรม))+1),ROWS($B$3:B24)))&CHAR(10),\"\")","v":""}]
[null,{"$f":"IFERROR(INDEX(กิจกรรม,SMALL(IF(เป้าหมาย=$B$2,ROW(กิจกรรม)-MIN(ROW(กิจกรรม))+1),ROWS($B$3:B25)))&\" \"&CHAR(10)&(INDEX(ผลลัพธ์,SMALL(IF(เป้าหมาย=$B$2,ROW(ผลลัพธ์)-MIN(ROW(ผลลัพธ์))+1),ROWS($B$3:B25))))&CHAR(10),\"\")","v":""},null,{"$f":"IFERROR(INDEX(กิจกรรม,SMALL(IF(เป้าหมาย=$D$2,ROW(กิจกรรม)-MIN(ROW(กิจกรรม))+1),ROWS($B$3:B25)))&CHAR(10),\"\")","v":""},null,{"$f":"IFERROR(INDEX(กิจกรรม,SMALL(IF(เป้าหมาย=$F$2,ROW(กิจกรรม)-MIN(ROW(กิจกรรม))+1),ROWS($B$3:B25)))&CHAR(10),\"\")","v":""},null,{"$f":"IFERROR(INDEX(กิจกรรม,SMALL(IF(เป้าหมาย=$H$2,ROW(กิจกรรม)-MIN(ROW(กิจกรรม))+1),ROWS($B$3:B25)))&CHAR(10),\"\")","v":""}]
[null,{"$f":"IFERROR(INDEX(กิจกรรม,SMALL(IF(เป้าหมาย=$B$2,ROW(กิจกรรม)-MIN(ROW(กิจกรรม))+1),ROWS($B$3:B26)))&\" \"&CHAR(10)&(INDEX(ผลลัพธ์,SMALL(IF(เป้าหมาย=$B$2,ROW(ผลลัพธ์)-MIN(ROW(ผลลัพธ์))+1),ROWS($B$3:B26))))&CHAR(10),\"\")","v":""},null,{"$f":"IFERROR(INDEX(กิจกรรม,SMALL(IF(เป้าหมาย=$D$2,ROW(กิจกรรม)-MIN(ROW(กิจกรรม))+1),ROWS($B$3:B26)))&CHAR(10),\"\")","v":""},null,{"$f":"IFERROR(INDEX(กิจกรรม,SMALL(IF(เป้าหมาย=$F$2,ROW(กิจกรรม)-MIN(ROW(กิจกรรม))+1),ROWS($B$3:B26)))&CHAR(10),\"\")","v":""},null,{"$f":"IFERROR(INDEX(กิจกรรม,SMALL(IF(เป้าหมาย=$H$2,ROW(กิจกรรม)-MIN(ROW(กิจกรรม))+1),ROWS($B$3:B26)))&CHAR(10),\"\")","v":""}]
[null,{"$f":"IFERROR(INDEX(กิจกรรม,SMALL(IF(เป้าหมาย=$B$2,ROW(กิจกรรม)-MIN(ROW(กิจกรรม))+1),ROWS($B$3:B27)))&\" \"&CHAR(10)&(INDEX(ผลลัพธ์,SMALL(IF(เป้าหมาย=$B$2,ROW(ผลลัพธ์)-MIN(ROW(ผลลัพธ์))+1),ROWS($B$3:B27))))&CHAR(10),\"\")","v":""},null,{"$f":"IFERROR(INDEX(กิจกรรม,SMALL(IF(เป้าหมาย=$D$2,ROW(กิจกรรม)-MIN(ROW(กิจกรรม))+1),ROWS($B$3:B27)))&CHAR(10),\"\")","v":""},null,{"$f":"IFERROR(INDEX(กิจกรรม,SMALL(IF(เป้าหมาย=$F$2,ROW(กิจกรรม)-MIN(ROW(กิจกรรม))+1),ROWS($B$3:B27)))&CHAR(10),\"\")","v":""},null,{"$f":"IFERROR(INDEX(กิจกรรม,SMALL(IF(เป้าหมาย=$H$2,ROW(กิจกรรม)-MIN(ROW(กิจกรรม))+1),ROWS($B$3:B27)))&CHAR(10),\"\")","v":""}]
[null,{"$f":"IFERROR(INDEX(กิจกรรม,SMALL(IF(เป้าหมาย=$B$2,ROW(กิจกรรม)-MIN(ROW(กิจกรรม))+1),ROWS($B$3:B28)))&\" \"&CHAR(10)&(INDEX(ผลลัพธ์,SMALL(IF(เป้าหมาย=$B$2,ROW(ผลลัพธ์)-MIN(ROW(ผลลัพธ์))+1),ROWS($B$3:B28))))&CHAR(10),\"\")","v":""},null,{"$f":"IFERROR(INDEX(กิจกรรม,SMALL(IF(เป้าหมาย=$D$2,ROW(กิจกรรม)-MIN(ROW(กิจกรรม))+1),ROWS($B$3:B28)))&CHAR(10),\"\")","v":""},null,{"$f":"IFERROR(INDEX(กิจกรรม,SMALL(IF(เป้าหมาย=$F$2,ROW(กิจกรรม)-MIN(ROW(กิจกรรม))+1),ROWS($B$3:B28)))&CHAR(10),\"\")","v":""},null,{"$f":"IFERROR(INDEX(กิจกรรม,SMALL(IF(เป้าหมาย=$H$2,ROW(กิจกรรม)-MIN(ROW(กิจกรรม))+1),ROWS($B$3:B28)))&CHAR(10),\"\")","v":""}]
[null,{"$f":"IFERROR(INDEX(กิจกรรม,SMALL(IF(เป้าหมาย=$B$2,ROW(กิจกรรม)-MIN(ROW(กิจกรรม))+1),ROWS($B$3:B29)))&\" \"&CHAR(10)&(INDEX(ผลลัพธ์,SMALL(IF(เป้าหมาย=$B$2,ROW(ผลลัพธ์)-MIN(ROW(ผลลัพธ์))+1),ROWS($B$3:B29))))&CHAR(10),\"\")","v":""},null,{"$f":"IFERROR(INDEX(กิจกรรม,SMALL(IF(เป้าหมาย=$D$2,ROW(กิจกรรม)-MIN(ROW(กิจกรรม))+1),ROWS($B$3:B29)))&CHAR(10),\"\")","v":""},null,{"$f":"IFERROR(INDEX(กิจกรรม,SMALL(IF(เป้าหมาย=$F$2,ROW(กิจกรรม)-MIN(ROW(กิจกรรม))+1),ROWS($B$3:B29)))&CHAR(10),\"\")","v":""},null,{"$f":"IFERROR(INDEX(กิจกรรม,SMALL(IF(เป้าหมาย=$H$2,ROW(กิจกรรม)-MIN(ROW(กิจกรรม))+1),ROWS($B$3:B29)))&CHAR(10),\"\")","v":""}]
[null,{"$f":"IFERROR(INDEX(กิจกรรม,SMALL(IF(เป้าหมาย=$B$2,ROW(กิจกรรม)-MIN(ROW(กิจกรรม))+1),ROWS($B$3:B30)))&\" \"&CHAR(10)&(INDEX(ผลลัพธ์,SMALL(IF(เป้าหมาย=$B$2,ROW(ผลลัพธ์)-MIN(ROW(ผลลัพธ์))+1),ROWS($B$3:B30))))&CHAR(10),\"\")","v":""},null,{"$f":"IFERROR(INDEX(กิจกรรม,SMALL(IF(เป้าหมาย=$D$2,ROW(กิจกรรม)-MIN(ROW(กิจกรรม))+1),ROWS($B$3:B30)))&CHAR(10),\"\")","v":""},null,{"$f":"IFERROR(INDEX(กิจกรรม,SMALL(IF(เป้าหมาย=$F$2,ROW(กิจกรรม)-MIN(ROW(กิจกรรม))+1),ROWS($B$3:B30)))&CHAR(10),\"\")","v":""},null,{"$f":"IFERROR(INDEX(กิจกรรม,SMALL(IF(เป้าหมาย=$H$2,ROW(กิจกรรม)-MIN(ROW(กิจกรรม))+1),ROWS($B$3:B30)))&CHAR(10),\"\")","v":""}]
[null,{"$f":"IFERROR(INDEX(กิจกรรม,SMALL(IF(เป้าหมาย=$B$2,ROW(กิจกรรม)-MIN(ROW(กิจกรรม))+1),ROWS($B$3:B31)))&\" \"&CHAR(10)&(INDEX(ผลลัพธ์,SMALL(IF(เป้าหมาย=$B$2,ROW(ผลลัพธ์)-MIN(ROW(ผลลัพธ์))+1),ROWS($B$3:B31))))&CHAR(10),\"\")","v":""},null,{"$f":"IFERROR(INDEX(กิจกรรม,SMALL(IF(เป้าหมาย=$D$2,ROW(กิจกรรม)-MIN(ROW(กิจกรรม))+1),ROWS($B$3:B31)))&CHAR(10),\"\")","v":""},null,{"$f":"IFERROR(INDEX(กิจกรรม,SMALL(IF(เป้าหมาย=$F$2,ROW(กิจกรรม)-MIN(ROW(กิจกรรม))+1),ROWS($B$3:B31)))&CHAR(10),\"\")","v":""},null,{"$f":"IFERROR(INDEX(กิจกรรม,SMALL(IF(เป้าหมาย=$H$2,ROW(กิจกรรม)-MIN(ROW(กิจกรรม))+1),ROWS($B$3:B31)))&CHAR(10),\"\")","v":""}]
[null,{"$f":"IFERROR(INDEX(กิจกรรม,SMALL(IF(เป้าหมาย=$B$2,ROW(กิจกรรม)-MIN(ROW(กิจกรรม))+1),ROWS($B$3:B32)))&\" \"&CHAR(10)&(INDEX(ผลลัพธ์,SMALL(IF(เป้าหมาย=$B$2,ROW(ผลลัพธ์)-MIN(ROW(ผลลัพธ์))+1),ROWS($B$3:B32))))&CHAR(10),\"\")","v":""},null,{"$f":"IFERROR(INDEX(กิจกรรม,SMALL(IF(เป้าหมาย=$D$2,ROW(กิจกรรม)-MIN(ROW(กิจกรรม))+1),ROWS($B$3:B32)))&CHAR(10),\"\")","v":""},null,{"$f":"IFERROR(INDEX(กิจกรรม,SMALL(IF(เป้าหมาย=$F$2,ROW(กิจกรรม)-MIN(ROW(กิจกรรม))+1),ROWS($B$3:B32)))&CHAR(10),\"\")","v":""},null,{"$f":"IFERROR(INDEX(กิจกรรม,SMALL(IF(เป้าหมาย=$H$2,ROW(กิจกรรม)-MIN(ROW(กิจกรรม))+1),ROWS($B$3:B32)))&CHAR(10),\"\")","v":""}]
[null,{"$f":"IFERROR(INDEX(กิจกรรม,SMALL(IF(เป้าหมาย=$B$2,ROW(กิจกรรม)-MIN(ROW(กิจกรรม))+1),ROWS($B$3:B33)))&\" \"&CHAR(10)&(INDEX(ผลลัพธ์,SMALL(IF(เป้าหมาย=$B$2,ROW(ผลลัพธ์)-MIN(ROW(ผลลัพธ์))+1),ROWS($B$3:B33))))&CHAR(10),\"\")","v":""},null,{"$f":"IFERROR(INDEX(กิจกรรม,SMALL(IF(เป้าหมาย=$D$2,ROW(กิจกรรม)-MIN(ROW(กิจกรรม))+1),ROWS($B$3:B33)))&CHAR(10),\"\")","v":""},null,{"$f":"IFERROR(INDEX(กิจกรรม,SMALL(IF(เป้าหมาย=$F$2,ROW(กิจกรรม)-MIN(ROW(กิจกรรม))+1),ROWS($B$3:B33)))&CHAR(10),\"\")","v":""},null,{"$f":"IFERROR(INDEX(กิจกรรม,SMALL(IF(เป้าหมาย=$H$2,ROW(กิจกรรม)-MIN(ROW(กิจกรรม))+1),ROWS($B$3:B33)))&CHAR(10),\"\")","v":""}]
[null,{"$f":"IFERROR(INDEX(กิจกรรม,SMALL(IF(เป้าหมาย=$B$2,ROW(กิจกรรม)-MIN(ROW(กิจกรรม))+1),ROWS($B$3:B34)))&\" \"&CHAR(10)&(INDEX(ผลลัพธ์,SMALL(IF(เป้าหมาย=$B$2,ROW(ผลลัพธ์)-MIN(ROW(ผลลัพธ์))+1),ROWS($B$3:B34))))&CHAR(10),\"\")","v":""},null,{"$f":"IFERROR(INDEX(กิจกรรม,SMALL(IF(เป้าหมาย=$D$2,ROW(กิจกรรม)-MIN(ROW(กิจกรรม))+1),ROWS($B$3:B34)))&CHAR(10),\"\")","v":""},null,{"$f":"IFERROR(INDEX(กิจกรรม,SMALL(IF(เป้าหมาย=$F$2,ROW(กิจกรรม)-MIN(ROW(กิจกรรม))+1),ROWS($B$3:B34)))&CHAR(10),\"\")","v":""},null,{"$f":"IFERROR(INDEX(กิจกรรม,SMALL(IF(เป้าหมาย=$H$2,ROW(กิจกรรม)-MIN(ROW(กิจกรรม))+1),ROWS($B$3:B34)))&CHAR(10),\"\")","v":""}]
[null,{"$f":"IFERROR(INDEX(กิจกรรม,SMALL(IF(เป้าหมาย=$B$2,ROW(กิจกรรม)-MIN(ROW(กิจกรรม))+1),ROWS($B$3:B35)))&\" \"&CHAR(10)&(INDEX(ผลลัพธ์,SMALL(IF(เป้าหมาย=$B$2,ROW(ผลลัพธ์)-MIN(ROW(ผลลัพธ์))+1),ROWS($B$3:B35))))&CHAR(10),\"\")","v":""},null,{"$f":"IFERROR(INDEX(กิจกรรม,SMALL(IF(เป้าหมาย=$D$2,ROW(กิจกรรม)-MIN(ROW(กิจกรรม))+1),ROWS($B$3:B35)))&CHAR(10),\"\")","v":""},null,{"$f":"IFERROR(INDEX(กิจกรรม,SMALL(IF(เป้าหมาย=$F$2,ROW(กิจกรรม)-MIN(ROW(กิจกรรม))+1),ROWS($B$3:B35)))&CHAR(10),\"\")","v":""},null,{"$f":"IFERROR(INDEX(กิจกรรม,SMALL(IF(เป้าหมาย=$H$2,ROW(กิจกรรม)-MIN(ROW(กิจกรรม))+1),ROWS($B$3:B35)))&CHAR(10),\"\")","v":""}]
[null,{"$f":"IFERROR(INDEX(กิจกรรม,SMALL(IF(เป้าหมาย=$B$2,ROW(กิจกรรม)-MIN(ROW(กิจกรรม))+1),ROWS($B$3:B36)))&\" \"&CHAR(10)&(INDEX(ผลลัพธ์,SMALL(IF(เป้าหมาย=$B$2,ROW(ผลลัพธ์)-MIN(ROW(ผลลัพธ์))+1),ROWS($B$3:B36))))&CHAR(10),\"\")","v":""},null,{"$f":"IFERROR(INDEX(กิจกรรม,SMALL(IF(เป้าหมาย=$D$2,ROW(กิจกรรม)-MIN(ROW(กิจกรรม))+1),ROWS($B$3:B36)))&CHAR(10),\"\")","v":""},null,{"$f":"IFERROR(INDEX(กิจกรรม,SMALL(IF(เป้าหมาย=$F$2,ROW(กิจกรรม)-MIN(ROW(กิจกรรม))+1),ROWS($B$3:B36)))&CHAR(10),\"\")","v":""},null,{"$f":"IFERROR(INDEX(กิจกรรม,SMALL(IF(เป้าหมาย=$H$2,ROW(กิจกรรม)-MIN(ROW(กิจกรรม))+1),ROWS($B$3:B36)))&CHAR(10),\"\")","v":""}]
[null,{"$f":"IFERROR(INDEX(กิจกรรม,SMALL(IF(เป้าหมาย=$B$2,ROW(กิจกรรม)-MIN(ROW(กิจกรรม))+1),ROWS($B$3:B37)))&\" \"&CHAR(10)&(INDEX(ผลลัพธ์,SMALL(IF(เป้าหมาย=$B$2,ROW(ผลลัพธ์)-MIN(ROW(ผลลัพธ์))+1),ROWS($B$3:B37))))&CHAR(10),\"\")","v":""},null,{"$f":"IFERROR(INDEX(กิจกรรม,SMALL(IF(เป้าหมาย=$D$2,ROW(กิจกรรม)-MIN(ROW(กิจกรรม))+1),ROWS($B$3:B37)))&CHAR(10),\"\")","v":""},null,{"$f":"IFERROR(INDEX(กิจกรรม,SMALL(IF(เป้าหมาย=$F$2,ROW(กิจกรรม)-MIN(ROW(กิจกรรม))+1),ROWS($B$3:B37)))&CHAR(10),\"\")","v":""},null,{"$f":"IFERROR(INDEX(กิจกรรม,SMALL(IF(เป้าหมาย=$H$2,ROW(กิจกรรม)-MIN(ROW(กิจกรรม))+1),ROWS($B$3:B37)))&CHAR(10),\"\")","v":""}]
[null,{"$f":"IFERROR(INDEX(กิจกรรม,SMALL(IF(เป้าหมาย=$B$2,ROW(กิจกรรม)-MIN(ROW(กิจกรรม))+1),ROWS($B$3:B38)))&\" \"&CHAR(10)&(INDEX(ผลลัพธ์,SMALL(IF(เป้าหมาย=$B$2,ROW(ผลลัพธ์)-MIN(ROW(ผลลัพธ์))+1),ROWS($B$3:B38))))&CHAR(10),\"\")","v":""},null,{"$f":"IFERROR(INDEX(กิจกรรม,SMALL(IF(เป้าหมาย=$D$2,ROW(กิจกรรม)-MIN(ROW(กิจกรรม))+1),ROWS($B$3:B38)))&CHAR(10),\"\")","v":""},null,{"$f":"IFERROR(INDEX(กิจกรรม,SMALL(IF(เป้าหมาย=$F$2,ROW(กิจกรรม)-MIN(ROW(กิจกรรม))+1),ROWS($B$3:B38)))&CHAR(10),\"\")","v":""},null,{"$f":"IFERROR(INDEX(กิจกรรม,SMALL(IF(เป้าหมาย=$H$2,ROW(กิจกรรม)-MIN(ROW(กิจกรรม))+1),ROWS($B$3:B38)))&CHAR(10),\"\")","v":""}]
[null,{"$f":"IFERROR(INDEX(กิจกรรม,SMALL(IF(เป้าหมาย=$B$2,ROW(กิจกรรม)-MIN(ROW(กิจกรรม))+1),ROWS($B$3:B39)))&\" \"&CHAR(10)&(INDEX(ผลลัพธ์,SMALL(IF(เป้าหมาย=$B$2,ROW(ผลลัพธ์)-MIN(ROW(ผลลัพธ์))+1),ROWS($B$3:B39))))&CHAR(10),\"\")","v":""},null,{"$f":"IFERROR(INDEX(กิจกรรม,SMALL(IF(เป้าหมาย=$D$2,ROW(กิจกรรม)-MIN(ROW(กิจกรรม))+1),ROWS($B$3:B39)))&CHAR(10),\"\")","v":""},null,{"$f":"IFERROR(INDEX(กิจกรรม,SMALL(IF(เป้าหมาย=$F$2,ROW(กิจกรรม)-MIN(ROW(กิจกรรม))+1),ROWS($B$3:B39)))&CHAR(10),\"\")","v":""},null,{"$f":"IFERROR(INDEX(กิจกรรม,SMALL(IF(เป้าหมาย=$H$2,ROW(กิจกรรม)-MIN(ROW(กิจกรรม))+1),ROWS($B$3:B39)))&CHAR(10),\"\")","v":""}]
[null,{"$f":"IFERROR(INDEX(กิจกรรม,SMALL(IF(เป้าหมาย=$B$2,ROW(กิจกรรม)-MIN(ROW(กิจกรรม))+1),ROWS($B$3:B40)))&\" \"&CHAR(10)&(INDEX(ผลลัพธ์,SMALL(IF(เป้าหมาย=$B$2,ROW(ผลลัพธ์)-MIN(ROW(ผลลัพธ์))+1),ROWS($B$3:B40))))&CHAR(10),\"\")","v":""},null,{"$f":"IFERROR(INDEX(กิจกรรม,SMALL(IF(เป้าหมาย=$D$2,ROW(กิจกรรม)-MIN(ROW(กิจกรรม))+1),ROWS($B$3:B40)))&CHAR(10),\"\")","v":""},null,{"$f":"IFERROR(INDEX(กิจกรรม,SMALL(IF(เป้าหมาย=$F$2,ROW(กิจกรรม)-MIN(ROW(กิจกรรม))+1),ROWS($B$3:B40)))&CHAR(10),\"\")","v":""},null,{"$f":"IFERROR(INDEX(กิจกรรม,SMALL(IF(เป้าหมาย=$H$2,ROW(กิจกรรม)-MIN(ROW(กิจกรรม))+1),ROWS($B$3:B40)))&CHAR(10),\"\")","v":""}]
[null,{"$f":"IFERROR(INDEX(กิจกรรม,SMALL(IF(เป้าหมาย=$B$2,ROW(กิจกรรม)-MIN(ROW(กิจกรรม))+1),ROWS($B$3:B41)))&\" \"&CHAR(10)&(INDEX(ผลลัพธ์,SMALL(IF(เป้าหมาย=$B$2,ROW(ผลลัพธ์)-MIN(ROW(ผลลัพธ์))+1),ROWS($B$3:B41))))&CHAR(10),\"\")","v":""},null,{"$f":"IFERROR(INDEX(กิจกรรม,SMALL(IF(เป้าหมาย=$D$2,ROW(กิจกรรม)-MIN(ROW(กิจกรรม))+1),ROWS($B$3:B41)))&CHAR(10),\"\")","v":""},null,{"$f":"IFERROR(INDEX(กิจกรรม,SMALL(IF(เป้าหมาย=$F$2,ROW(กิจกรรม)-MIN(ROW(กิจกรรม))+1),ROWS($B$3:B41)))&CHAR(10),\"\")","v":""},null,{"$f":"IFERROR(INDEX(กิจกรรม,SMALL(IF(เป้าหมาย=$H$2,ROW(กิจกรรม)-MIN(ROW(กิจกรรม))+1),ROWS($B$3:B41)))&CHAR(10),\"\")","v":""}]
[null,{"$f":"IFERROR(INDEX(กิจกรรม,SMALL(IF(เป้าหมาย=$B$2,ROW(กิจกรรม)-MIN(ROW(กิจกรรม))+1),ROWS($B$3:B42)))&\" \"&CHAR(10)&(INDEX(ผลลัพธ์,SMALL(IF(เป้าหมาย=$B$2,ROW(ผลลัพธ์)-MIN(ROW(ผลลัพธ์))+1),ROWS($B$3:B42))))&CHAR(10),\"\")","v":""},null,{"$f":"IFERROR(INDEX(กิจกรรม,SMALL(IF(เป้าหมาย=$D$2,ROW(กิจกรรม)-MIN(ROW(กิจกรรม))+1),ROWS($B$3:B42)))&CHAR(10),\"\")","v":""},null,{"$f":"IFERROR(INDEX(กิจกรรม,SMALL(IF(เป้าหมาย=$F$2,ROW(กิจกรรม)-MIN(ROW(กิจกรรม))+1),ROWS($B$3:B42)))&CHAR(10),\"\")","v":""},null,{"$f":"IFERROR(INDEX(กิจกรรม,SMALL(IF(เป้าหมาย=$H$2,ROW(กิจกรรม)-MIN(ROW(กิจกรรม))+1),ROWS($B$3:B42)))&CHAR(10),\"\")","v":""}]
[null,{"$f":"IFERROR(INDEX(กิจกรรม,SMALL(IF(เป้าหมาย=$B$2,ROW(กิจกรรม)-MIN(ROW(กิจกรรม))+1),ROWS($B$3:B43)))&\" \"&CHAR(10)&(INDEX(ผลลัพธ์,SMALL(IF(เป้าหมาย=$B$2,ROW(ผลลัพธ์)-MIN(ROW(ผลลัพธ์))+1),ROWS($B$3:B43))))&CHAR(10),\"\")","v":""},null,{"$f":"IFERROR(INDEX(กิจกรรม,SMALL(IF(เป้าหมาย=$D$2,ROW(กิจกรรม)-MIN(ROW(กิจกรรม))+1),ROWS($B$3:B43)))&CHAR(10),\"\")","v":""},null,{"$f":"IFERROR(INDEX(กิจกรรม,SMALL(IF(เป้าหมาย=$F$2,ROW(กิจกรรม)-MIN(ROW(กิจกรรม))+1),ROWS($B$3:B43)))&CHAR(10),\"\")","v":""},null,{"$f":"IFERROR(INDEX(กิจกรรม,SMALL(IF(เป้าหมาย=$H$2,ROW(กิจกรรม)-MIN(ROW(กิจกรรม))+1),ROWS($B$3:B43)))&CHAR(10),\"\")","v":""}]
[null,{"$f":"IFERROR(INDEX(กิจกรรม,SMALL(IF(เป้าหมาย=$B$2,ROW(กิจกรรม)-MIN(ROW(กิจกรรม))+1),ROWS($B$3:B44)))&\" \"&CHAR(10)&(INDEX(ผลลัพธ์,SMALL(IF(เป้าหมาย=$B$2,ROW(ผลลัพธ์)-MIN(ROW(ผลลัพธ์))+1),ROWS($B$3:B44))))&CHAR(10),\"\")","v":""},null,{"$f":"IFERROR(INDEX(กิจกรรม,SMALL(IF(เป้าหมาย=$D$2,ROW(กิจกรรม)-MIN(ROW(กิจกรรม))+1),ROWS($B$3:B44)))&CHAR(10),\"\")","v":""},null,{"$f":"IFERROR(INDEX(กิจกรรม,SMALL(IF(เป้าหมาย=$F$2,ROW(กิจกรรม)-MIN(ROW(กิจกรรม))+1),ROWS($B$3:B44)))&CHAR(10),\"\")","v":""},null,{"$f":"IFERROR(INDEX(กิจกรรม,SMALL(IF(เป้าหมาย=$H$2,ROW(กิจกรรม)-MIN(ROW(กิจกรรม))+1),ROWS($B$3:B44)))&CHAR(10),\"\")","v":""}]
[null,{"$f":"IFERROR(INDEX(กิจกรรม,SMALL(IF(เป้าหมาย=$B$2,ROW(กิจกรรม)-MIN(ROW(กิจกรรม))+1),ROWS($B$3:B45)))&\" \"&CHAR(10)&(INDEX(ผลลัพธ์,SMALL(IF(เป้าหมาย=$B$2,ROW(ผลลัพธ์)-MIN(ROW(ผลลัพธ์))+1),ROWS($B$3:B45))))&CHAR(10),\"\")","v":""},null,{"$f":"IFERROR(INDEX(กิจกรรม,SMALL(IF(เป้าหมาย=$D$2,ROW(กิจกรรม)-MIN(ROW(กิจกรรม))+1),ROWS($B$3:B45)))&CHAR(10),\"\")","v":""},null,{"$f":"IFERROR(INDEX(กิจกรรม,SMALL(IF(เป้าหมาย=$F$2,ROW(กิจกรรม)-MIN(ROW(กิจกรรม))+1),ROWS($B$3:B45)))&CHAR(10),\"\")","v":""},null,{"$f":"IFERROR(INDEX(กิจกรรม,SMALL(IF(เป้าหมาย=$H$2,ROW(กิจกรรม)-MIN(ROW(กิจกรรม))+1),ROWS($B$3:B45)))&CHAR(10),\"\")","v":""}]
[null,{"$f":"IFERROR(INDEX(กิจกรรม,SMALL(IF(เป้าหมาย=$B$2,ROW(กิจกรรม)-MIN(ROW(กิจกรรม))+1),ROWS($B$3:B46)))&\" \"&CHAR(10)&(INDEX(ผลลัพธ์,SMALL(IF(เป้าหมาย=$B$2,ROW(ผลลัพธ์)-MIN(ROW(ผลลัพธ์))+1),ROWS($B$3:B46))))&CHAR(10),\"\")","v":""},null,{"$f":"IFERROR(INDEX(กิจกรรม,SMALL(IF(เป้าหมาย=$D$2,ROW(กิจกรรม)-MIN(ROW(กิจกรรม))+1),ROWS($B$3:B46)))&CHAR(10),\"\")","v":""},null,{"$f":"IFERROR(INDEX(กิจกรรม,SMALL(IF(เป้าหมาย=$F$2,ROW(กิจกรรม)-MIN(ROW(กิจกรรม))+1),ROWS($B$3:B46)))&CHAR(10),\"\")","v":""},null,{"$f":"IFERROR(INDEX(กิจกรรม,SMALL(IF(เป้าหมาย=$H$2,ROW(กิจกรรม)-MIN(ROW(กิจกรรม))+1),ROWS($B$3:B46)))&CHAR(10),\"\")","v":""}]
[null,{"$f":"IFERROR(INDEX(กิจกรรม,SMALL(IF(เป้าหมาย=$B$2,ROW(กิจกรรม)-MIN(ROW(กิจกรรม))+1),ROWS($B$3:B47)))&\" \"&CHAR(10)&(INDEX(ผลลัพธ์,SMALL(IF(เป้าหมาย=$B$2,ROW(ผลลัพธ์)-MIN(ROW(ผลลัพธ์))+1),ROWS($B$3:B47))))&CHAR(10),\"\")","v":""},null,{"$f":"IFERROR(INDEX(กิจกรรม,SMALL(IF(เป้าหมาย=$D$2,ROW(กิจกรรม)-MIN(ROW(กิจกรรม))+1),ROWS($B$3:B47)))&CHAR(10),\"\")","v":""},null,{"$f":"IFERROR(INDEX(กิจกรรม,SMALL(IF(เป้าหมาย=$F$2,ROW(กิจกรรม)-MIN(ROW(กิจกรรม))+1),ROWS($B$3:B47)))&CHAR(10),\"\")","v":""},null,{"$f":"IFERROR(INDEX(กิจกรรม,SMALL(IF(เป้าหมาย=$H$2,ROW(กิจกรรม)-MIN(ROW(กิจกรรม))+1),ROWS($B$3:B47)))&CHAR(10),\"\")","v":""}]
[null,{"$f":"IFERROR(INDEX(กิจกรรม,SMALL(IF(เป้าหมาย=$B$2,ROW(กิจกรรม)-MIN(ROW(กิจกรรม))+1),ROWS($B$3:B48)))&\" \"&CHAR(10)&(INDEX(ผลลัพธ์,SMALL(IF(เป้าหมาย=$B$2,ROW(ผลลัพธ์)-MIN(ROW(ผลลัพธ์))+1),ROWS($B$3:B48))))&CHAR(10),\"\")","v":""},null,{"$f":"IFERROR(INDEX(กิจกรรม,SMALL(IF(เป้าหมาย=$D$2,ROW(กิจกรรม)-MIN(ROW(กิจกรรม))+1),ROWS($B$3:B48)))&CHAR(10),\"\")","v":""},null,{"$f":"IFERROR(INDEX(กิจกรรม,SMALL(IF(เป้าหมาย=$F$2,ROW(กิจกรรม)-MIN(ROW(กิจกรรม))+1),ROWS($B$3:B48)))&CHAR(10),\"\")","v":""},null,{"$f":"IFERROR(INDEX(กิจกรรม,SMALL(IF(เป้าหมาย=$H$2,ROW(กิจกรรม)-MIN(ROW(กิจกรรม))+1),ROWS($B$3:B48)))&CHAR(10),\"\")","v":""}]
[null,{"$f":"IFERROR(INDEX(กิจกรรม,SMALL(IF(เป้าหมาย=$B$2,ROW(กิจกรรม)-MIN(ROW(กิจกรรม))+1),ROWS($B$3:B49)))&\" \"&CHAR(10)&(INDEX(ผลลัพธ์,SMALL(IF(เป้าหมาย=$B$2,ROW(ผลลัพธ์)-MIN(ROW(ผลลัพธ์))+1),ROWS($B$3:B49))))&CHAR(10),\"\")","v":""},null,{"$f":"IFERROR(INDEX(กิจกรรม,SMALL(IF(เป้าหมาย=$D$2,ROW(กิจกรรม)-MIN(ROW(กิจกรรม))+1),ROWS($B$3:B49)))&CHAR(10),\"\")","v":""},null,{"$f":"IFERROR(INDEX(กิจกรรม,SMALL(IF(เป้าหมาย=$F$2,ROW(กิจกรรม)-MIN(ROW(กิจกรรม))+1),ROWS($B$3:B49)))&CHAR(10),\"\")","v":""},null,{"$f":"IFERROR(INDEX(กิจกรรม,SMALL(IF(เป้าหมาย=$H$2,ROW(กิจกรรม)-MIN(ROW(กิจกรรม))+1),ROWS($B$3:B49)))&CHAR(10),\"\")","v":""}]
[null,{"$f":"IFERROR(INDEX(กิจกรรม,SMALL(IF(เป้าหมาย=$B$2,ROW(กิจกรรม)-MIN(ROW(กิจกรรม))+1),ROWS($B$3:B50)))&\" \"&CHAR(10)&(INDEX(ผลลัพธ์,SMALL(IF(เป้าหมาย=$B$2,ROW(ผลลัพธ์)-MIN(ROW(ผลลัพธ์))+1),ROWS($B$3:B50))))&CHAR(10),\"\")","v":""},null,{"$f":"IFERROR(INDEX(กิจกรรม,SMALL(IF(เป้าหมาย=$D$2,ROW(กิจกรรม)-MIN(ROW(กิจกรรม))+1),ROWS($B$3:B50)))&CHAR(10),\"\")","v":""},null,{"$f":"IFERROR(INDEX(กิจกรรม,SMALL(IF(เป้าหมาย=$F$2,ROW(กิจกรรม)-MIN(ROW(กิจกรรม))+1),ROWS($B$3:B50)))&CHAR(10),\"\")","v":""},null,{"$f":"IFERROR(INDEX(กิจกรรม,SMALL(IF(เป้าหมาย=$H$2,ROW(กิจกรรม)-MIN(ROW(กิจกรรม))+1),ROWS($B$3:B50)))&CHAR(10),\"\")","v":""}]
[null,{"$f":"IFERROR(INDEX(กิจกรรม,SMALL(IF(เป้าหมาย=$B$2,ROW(กิจกรรม)-MIN(ROW(กิจกรรม))+1),ROWS($B$3:B51)))&\" \"&CHAR(10)&(INDEX(ผลลัพธ์,SMALL(IF(เป้าหมาย=$B$2,ROW(ผลลัพธ์)-MIN(ROW(ผลลัพธ์))+1),ROWS($B$3:B51))))&CHAR(10),\"\")","v":""},null,{"$f":"IFERROR(INDEX(กิจกรรม,SMALL(IF(เป้าหมาย=$D$2,ROW(กิจกรรม)-MIN(ROW(กิจกรรม))+1),ROWS($B$3:B51)))&CHAR(10),\"\")","v":""},null,{"$f":"IFERROR(INDEX(กิจกรรม,SMALL(IF(เป้าหมาย=$F$2,ROW(กิจกรรม)-MIN(ROW(กิจกรรม))+1),ROWS($B$3:B51)))&CHAR(10),\"\")","v":""},null,{"$f":"IFERROR(INDEX(กิจกรรม,SMALL(IF(เป้าหมาย=$H$2,ROW(กิจกรรม)-MIN(ROW(กิจกรรม))+1),ROWS($B$3:B51)))&CHAR(10),\"\")","v":""}]
[null,{"$f":"IFERROR(INDEX(กิจกรรม,SMALL(IF(เป้าหมาย=$B$2,ROW(กิจกรรม)-MIN(ROW(กิจกรรม))+1),ROWS($B$3:B52)))&\" \"&CHAR(10)&(INDEX(ผลลัพธ์,SMALL(IF(เป้าหมาย=$B$2,ROW(ผลลัพธ์)-MIN(ROW(ผลลัพธ์))+1),ROWS($B$3:B52))))&CHAR(10),\"\")","v":""},null,{"$f":"IFERROR(INDEX(กิจกรรม,SMALL(IF(เป้าหมาย=$D$2,ROW(กิจกรรม)-MIN(ROW(กิจกรรม))+1),ROWS($B$3:B52)))&CHAR(10),\"\")","v":""},null,{"$f":"IFERROR(INDEX(กิจกรรม,SMALL(IF(เป้าหมาย=$F$2,ROW(กิจกรรม)-MIN(ROW(กิจกรรม))+1),ROWS($B$3:B52)))&CHAR(10),\"\")","v":""},null,{"$f":"IFERROR(INDEX(กิจกรรม,SMALL(IF(เป้าหมาย=$H$2,ROW(กิจกรรม)-MIN(ROW(กิจกรรม))+1),ROWS($B$3:B52)))&CHAR(10),\"\")","v":""}]
[null,{"$f":"IFERROR(INDEX(กิจกรรม,SMALL(IF(เป้าหมาย=$B$2,ROW(กิจกรรม)-MIN(ROW(กิจกรรม))+1),ROWS($B$3:B53)))&\" \"&CHAR(10)&(INDEX(ผลลัพธ์,SMALL(IF(เป้าหมาย=$B$2,ROW(ผลลัพธ์)-MIN(ROW(ผลลัพธ์))+1),ROWS($B$3:B53))))&CHAR(10),\"\")","v":""},null,{"$f":"IFERROR(INDEX(กิจกรรม,SMALL(IF(เป้าหมาย=$D$2,ROW(กิจกรรม)-MIN(ROW(กิจกรรม))+1),ROWS($B$3:B53)))&CHAR(10),\"\")","v":""},null,{"$f":"IFERROR(INDEX(กิจกรรม,SMALL(IF(เป้าหมาย=$F$2,ROW(กิจกรรม)-MIN(ROW(กิจกรรม))+1),ROWS($B$3:B53)))&CHAR(10),\"\")","v":""},null,{"$f":"IFERROR(INDEX(กิจกรรม,SMALL(IF(เป้าหมาย=$H$2,ROW(กิจกรรม)-MIN(ROW(กิจกรรม))+1),ROWS($B$3:B53)))&CHAR(10),\"\")","v":""}]
[null,{"$f":"IFERROR(INDEX(กิจกรรม,SMALL(IF(เป้าหมาย=$B$2,ROW(กิจกรรม)-MIN(ROW(กิจกรรม))+1),ROWS($B$3:B54)))&\" \"&CHAR(10)&(INDEX(ผลลัพธ์,SMALL(IF(เป้าหมาย=$B$2,ROW(ผลลัพธ์)-MIN(ROW(ผลลัพธ์))+1),ROWS($B$3:B54))))&CHAR(10),\"\")","v":""},null,{"$f":"IFERROR(INDEX(กิจกรรม,SMALL(IF(เป้าหมาย=$D$2,ROW(กิจกรรม)-MIN(ROW(กิจกรรม))+1),ROWS($B$3:B54)))&CHAR(10),\"\")","v":""},null,{"$f":"IFERROR(INDEX(กิจกรรม,SMALL(IF(เป้าหมาย=$F$2,ROW(กิจกรรม)-MIN(ROW(กิจกรรม))+1),ROWS($B$3:B54)))&CHAR(10),\"\")","v":""},null,{"$f":"IFERROR(INDEX(กิจกรรม,SMALL(IF(เป้าหมาย=$H$2,ROW(กิจกรรม)-MIN(ROW(กิจกรรม))+1),ROWS($B$3:B54)))&CHAR(10),\"\")","v":""}]
[null,{"$f":"IFERROR(INDEX(กิจกรรม,SMALL(IF(เป้าหมาย=$B$2,ROW(กิจกรรม)-MIN(ROW(กิจกรรม))+1),ROWS($B$3:B55)))&\" \"&CHAR(10)&(INDEX(ผลลัพธ์,SMALL(IF(เป้าหมาย=$B$2,ROW(ผลลัพธ์)-MIN(ROW(ผลลัพธ์))+1),ROWS($B$3:B55))))&CHAR(10),\"\")","v":""},null,{"$f":"IFERROR(INDEX(กิจกรรม,SMALL(IF(เป้าหมาย=$D$2,ROW(กิจกรรม)-MIN(ROW(กิจกรรม))+1),ROWS($B$3:B55)))&CHAR(10),\"\")","v":""},null,{"$f":"IFERROR(INDEX(กิจกรรม,SMALL(IF(เป้าหมาย=$F$2,ROW(กิจกรรม)-MIN(ROW(กิจกรรม))+1),ROWS($B$3:B55)))&CHAR(10),\"\")","v":""},null,{"$f":"IFERROR(INDEX(กิจกรรม,SMALL(IF(เป้าหมาย=$H$2,ROW(กิจกรรม)-MIN(ROW(กิจกรรม))+1),ROWS($B$3:B55)))&CHAR(10),\"\")","v":""}]
[null,{"$f":"IFERROR(INDEX(กิจกรรม,SMALL(IF(เป้าหมาย=$B$2,ROW(กิจกรรม)-MIN(ROW(กิจกรรม))+1),ROWS($B$3:B56)))&\" \"&CHAR(10)&(INDEX(ผลลัพธ์,SMALL(IF(เป้าหมาย=$B$2,ROW(ผลลัพธ์)-MIN(ROW(ผลลัพธ์))+1),ROWS($B$3:B56))))&CHAR(10),\"\")","v":""},null,{"$f":"IFERROR(INDEX(กิจกรรม,SMALL(IF(เป้าหมาย=$D$2,ROW(กิจกรรม)-MIN(ROW(กิจกรรม))+1),ROWS($B$3:B56)))&CHAR(10),\"\")","v":""},null,{"$f":"IFERROR(INDEX(กิจกรรม,SMALL(IF(เป้าหมาย=$F$2,ROW(กิจกรรม)-MIN(ROW(กิจกรรม))+1),ROWS($B$3:B56)))&CHAR(10),\"\")","v":""},null,{"$f":"IFERROR(INDEX(กิจกรรม,SMALL(IF(เป้าหมาย=$H$2,ROW(กิจกรรม)-MIN(ROW(กิจกรรม))+1),ROWS($B$3:B56)))&CHAR(10),\"\")","v":""}]
[null,{"$f":"IFERROR(INDEX(กิจกรรม,SMALL(IF(เป้าหมาย=$B$2,ROW(กิจกรรม)-MIN(ROW(กิจกรรม))+1),ROWS($B$3:B57)))&\" \"&CHAR(10)&(INDEX(ผลลัพธ์,SMALL(IF(เป้าหมาย=$B$2,ROW(ผลลัพธ์)-MIN(ROW(ผลลัพธ์))+1),ROWS($B$3:B57))))&CHAR(10),\"\")","v":""},null,{"$f":"IFERROR(INDEX(กิจกรรม,SMALL(IF(เป้าหมาย=$D$2,ROW(กิจกรรม)-MIN(ROW(กิจกรรม))+1),ROWS($B$3:B57)))&CHAR(10),\"\")","v":""},null,{"$f":"IFERROR(INDEX(กิจกรรม,SMALL(IF(เป้าหมาย=$F$2,ROW(กิจกรรม)-MIN(ROW(กิจกรรม))+1),ROWS($B$3:B57)))&CHAR(10),\"\")","v":""},null,{"$f":"IFERROR(INDEX(กิจกรรม,SMALL(IF(เป้าหมาย=$H$2,ROW(กิจกรรม)-MIN(ROW(กิจกรรม))+1),ROWS($B$3:B57)))&CHAR(10),\"\")","v":""}]
[null,{"$f":"IFERROR(INDEX(กิจกรรม,SMALL(IF(เป้าหมาย=$B$2,ROW(กิจกรรม)-MIN(ROW(กิจกรรม))+1),ROWS($B$3:B58)))&\" \"&CHAR(10)&(INDEX(ผลลัพธ์,SMALL(IF(เป้าหมาย=$B$2,ROW(ผลลัพธ์)-MIN(ROW(ผลลัพธ์))+1),ROWS($B$3:B58))))&CHAR(10),\"\")","v":""},null,{"$f":"IFERROR(INDEX(กิจกรรม,SMALL(IF(เป้าหมาย=$D$2,ROW(กิจกรรม)-MIN(ROW(กิจกรรม))+1),ROWS($B$3:B58)))&CHAR(10),\"\")","v":""},null,{"$f":"IFERROR(INDEX(กิจกรรม,SMALL(IF(เป้าหมาย=$F$2,ROW(กิจกรรม)-MIN(ROW(กิจกรรม))+1),ROWS($B$3:B58)))&CHAR(10),\"\")","v":""},null,{"$f":"IFERROR(INDEX(กิจกรรม,SMALL(IF(เป้าหมาย=$H$2,ROW(กิจกรรม)-MIN(ROW(กิจกรรม))+1),ROWS($B$3:B58)))&CHAR(10),\"\")","v":""}]
[null,{"$f":"IFERROR(INDEX(กิจกรรม,SMALL(IF(เป้าหมาย=$B$2,ROW(กิจกรรม)-MIN(ROW(กิจกรรม))+1),ROWS($B$3:B59)))&\" \"&CHAR(10)&(INDEX(ผลลัพธ์,SMALL(IF(เป้าหมาย=$B$2,ROW(ผลลัพธ์)-MIN(ROW(ผลลัพธ์))+1),ROWS($B$3:B59))))&CHAR(10),\"\")","v":""},null,{"$f":"IFERROR(INDEX(กิจกรรม,SMALL(IF(เป้าหมาย=$D$2,ROW(กิจกรรม)-MIN(ROW(กิจกรรม))+1),ROWS($B$3:B59)))&CHAR(10),\"\")","v":""},null,{"$f":"IFERROR(INDEX(กิจกรรม,SMALL(IF(เป้าหมาย=$F$2,ROW(กิจกรรม)-MIN(ROW(กิจกรรม))+1),ROWS($B$3:B59)))&CHAR(10),\"\")","v":""},null,{"$f":"IFERROR(INDEX(กิจกรรม,SMALL(IF(เป้าหมาย=$H$2,ROW(กิจกรรม)-MIN(ROW(กิจกรรม))+1),ROWS($B$3:B59)))&CHAR(10),\"\")","v":""}]
[null,{"$f":"IFERROR(INDEX(กิจกรรม,SMALL(IF(เป้าหมาย=$B$2,ROW(กิจกรรม)-MIN(ROW(กิจกรรม))+1),ROWS($B$3:B60)))&\" \"&CHAR(10)&(INDEX(ผลลัพธ์,SMALL(IF(เป้าหมาย=$B$2,ROW(ผลลัพธ์)-MIN(ROW(ผลลัพธ์))+1),ROWS($B$3:B60))))&CHAR(10),\"\")","v":""},null,{"$f":"IFERROR(INDEX(กิจกรรม,SMALL(IF(เป้าหมาย=$D$2,ROW(กิจกรรม)-MIN(ROW(กิจกรรม))+1),ROWS($B$3:B60)))&CHAR(10),\"\")","v":""},null,{"$f":"IFERROR(INDEX(กิจกรรม,SMALL(IF(เป้าหมาย=$F$2,ROW(กิจกรรม)-MIN(ROW(กิจกรรม))+1),ROWS($B$3:B60)))&CHAR(10),\"\")","v":""},null,{"$f":"IFERROR(INDEX(กิจกรรม,SMALL(IF(เป้าหมาย=$H$2,ROW(กิจกรรม)-MIN(ROW(กิจกรรม))+1),ROWS($B$3:B60)))&CHAR(10),\"\")","v":""}]
[null,{"$f":"IFERROR(INDEX(กิจกรรม,SMALL(IF(เป้าหมาย=$B$2,ROW(กิจกรรม)-MIN(ROW(กิจกรรม))+1),ROWS($B$3:B61)))&\" \"&CHAR(10)&(INDEX(ผลลัพธ์,SMALL(IF(เป้าหมาย=$B$2,ROW(ผลลัพธ์)-MIN(ROW(ผลลัพธ์))+1),ROWS($B$3:B61))))&CHAR(10),\"\")","v":""},null,{"$f":"IFERROR(INDEX(กิจกรรม,SMALL(IF(เป้าหมาย=$D$2,ROW(กิจกรรม)-MIN(ROW(กิจกรรม))+1),ROWS($B$3:B61)))&CHAR(10),\"\")","v":""},null,{"$f":"IFERROR(INDEX(กิจกรรม,SMALL(IF(เป้าหมาย=$F$2,ROW(กิจกรรม)-MIN(ROW(กิจกรรม))+1),ROWS($B$3:B61)))&CHAR(10),\"\")","v":""},null,{"$f":"IFERROR(INDEX(กิจกรรม,SMALL(IF(เป้าหมาย=$H$2,ROW(กิจกรรม)-MIN(ROW(กิจกรรม))+1),ROWS($B$3:B61)))&CHAR(10),\"\")","v":""}]
[null,{"$f":"IFERROR(INDEX(กิจกรรม,SMALL(IF(เป้าหมาย=$B$2,ROW(กิจกรรม)-MIN(ROW(กิจกรรม))+1),ROWS($B$3:B62)))&\" \"&CHAR(10)&(INDEX(ผลลัพธ์,SMALL(IF(เป้าหมาย=$B$2,ROW(ผลลัพธ์)-MIN(ROW(ผลลัพธ์))+1),ROWS($B$3:B62))))&CHAR(10),\"\")","v":""},null,{"$f":"IFERROR(INDEX(กิจกรรม,SMALL(IF(เป้าหมาย=$D$2,ROW(กิจกรรม)-MIN(ROW(กิจกรรม))+1),ROWS($B$3:B62)))&CHAR(10),\"\")","v":""},null,{"$f":"IFERROR(INDEX(กิจกรรม,SMALL(IF(เป้าหมาย=$F$2,ROW(กิจกรรม)-MIN(ROW(กิจกรรม))+1),ROWS($B$3:B62)))&CHAR(10),\"\")","v":""},null,{"$f":"IFERROR(INDEX(กิจกรรม,SMALL(IF(เป้าหมาย=$H$2,ROW(กิจกรรม)-MIN(ROW(กิจกรรม))+1),ROWS($B$3:B62)))&CHAR(10),\"\")","v":""}]
[null,{"$f":"IFERROR(INDEX(กิจกรรม,SMALL(IF(เป้าหมาย=$B$2,ROW(กิจกรรม)-MIN(ROW(กิจกรรม))+1),ROWS($B$3:B63)))&\" \"&CHAR(10)&(INDEX(ผลลัพธ์,SMALL(IF(เป้าหมาย=$B$2,ROW(ผลลัพธ์)-MIN(ROW(ผลลัพธ์))+1),ROWS($B$3:B63))))&CHAR(10),\"\")","v":""},null,{"$f":"IFERROR(INDEX(กิจกรรม,SMALL(IF(เป้าหมาย=$D$2,ROW(กิจกรรม)-MIN(ROW(กิจกรรม))+1),ROWS($B$3:B63)))&CHAR(10),\"\")","v":""},null,{"$f":"IFERROR(INDEX(กิจกรรม,SMALL(IF(เป้าหมาย=$F$2,ROW(กิจกรรม)-MIN(ROW(กิจกรรม))+1),ROWS($B$3:B63)))&CHAR(10),\"\")","v":""},null,{"$f":"IFERROR(INDEX(กิจกรรม,SMALL(IF(เป้าหมาย=$H$2,ROW(กิจกรรม)-MIN(ROW(กิจกรรม))+1),ROWS($B$3:B63)))&CHAR(10),\"\")","v":""}]
[null,{"$f":"IFERROR(INDEX(กิจกรรม,SMALL(IF(เป้าหมาย=$B$2,ROW(กิจกรรม)-MIN(ROW(กิจกรรม))+1),ROWS($B$3:B64)))&\" \"&CHAR(10)&(INDEX(ผลลัพธ์,SMALL(IF(เป้าหมาย=$B$2,ROW(ผลลัพธ์)-MIN(ROW(ผลลัพธ์))+1),ROWS($B$3:B64))))&CHAR(10),\"\")","v":""},null,{"$f":"IFERROR(INDEX(กิจกรรม,SMALL(IF(เป้าหมาย=$D$2,ROW(กิจกรรม)-MIN(ROW(กิจกรรม))+1),ROWS($B$3:B64)))&CHAR(10),\"\")","v":""},null,{"$f":"IFERROR(INDEX(กิจกรรม,SMALL(IF(เป้าหมาย=$F$2,ROW(กิจกรรม)-MIN(ROW(กิจกรรม))+1),ROWS($B$3:B64)))&CHAR(10),\"\")","v":""},null,{"$f":"IFERROR(INDEX(กิจกรรม,SMALL(IF(เป้าหมาย=$H$2,ROW(กิจกรรม)-MIN(ROW(กิจกรรม))+1),ROWS($B$3:B64)))&CHAR(10),\"\")","v":""}]
[null,{"$f":"IFERROR(INDEX(กิจกรรม,SMALL(IF(เป้าหมาย=$B$2,ROW(กิจกรรม)-MIN(ROW(กิจกรรม))+1),ROWS($B$3:B65)))&\" \"&CHAR(10)&(INDEX(ผลลัพธ์,SMALL(IF(เป้าหมาย=$B$2,ROW(ผลลัพธ์)-MIN(ROW(ผลลัพธ์))+1),ROWS($B$3:B65))))&CHAR(10),\"\")","v":""},null,{"$f":"IFERROR(INDEX(กิจกรรม,SMALL(IF(เป้าหมาย=$D$2,ROW(กิจกรรม)-MIN(ROW(กิจกรรม))+1),ROWS($B$3:B65)))&CHAR(10),\"\")","v":""},null,{"$f":"IFERROR(INDEX(กิจกรรม,SMALL(IF(เป้าหมาย=$F$2,ROW(กิจกรรม)-MIN(ROW(กิจกรรม))+1),ROWS($B$3:B65)))&CHAR(10),\"\")","v":""},null,{"$f":"IFERROR(INDEX(กิจกรรม,SMALL(IF(เป้าหมาย=$H$2,ROW(กิจกรรม)-MIN(ROW(กิจกรรม))+1),ROWS($B$3:B65)))&CHAR(10),\"\")","v":""}]
[null,{"$f":"IFERROR(INDEX(กิจกรรม,SMALL(IF(เป้าหมาย=$B$2,ROW(กิจกรรม)-MIN(ROW(กิจกรรม))+1),ROWS($B$3:B66)))&\" \"&CHAR(10)&(INDEX(ผลลัพธ์,SMALL(IF(เป้าหมาย=$B$2,ROW(ผลลัพธ์)-MIN(ROW(ผลลัพธ์))+1),ROWS($B$3:B66))))&CHAR(10),\"\")","v":""},null,{"$f":"IFERROR(INDEX(กิจกรรม,SMALL(IF(เป้าหมาย=$D$2,ROW(กิจกรรม)-MIN(ROW(กิจกรรม))+1),ROWS($B$3:B66)))&CHAR(10),\"\")","v":""},null,{"$f":"IFERROR(INDEX(กิจกรรม,SMALL(IF(เป้าหมาย=$F$2,ROW(กิจกรรม)-MIN(ROW(กิจกรรม))+1),ROWS($B$3:B66)))&CHAR(10),\"\")","v":""},null,{"$f":"IFERROR(INDEX(กิจกรรม,SMALL(IF(เป้าหมาย=$H$2,ROW(กิจกรรม)-MIN(ROW(กิจกรรม))+1),ROWS($B$3:B66)))&CHAR(10),\"\")","v":""}]
[null,{"$f":"IFERROR(INDEX(กิจกรรม,SMALL(IF(เป้าหมาย=$B$2,ROW(กิจกรรม)-MIN(ROW(กิจกรรม))+1),ROWS($B$3:B67)))&\" \"&CHAR(10)&(INDEX(ผลลัพธ์,SMALL(IF(เป้าหมาย=$B$2,ROW(ผลลัพธ์)-MIN(ROW(ผลลัพธ์))+1),ROWS($B$3:B67))))&CHAR(10),\"\")","v":""},null,{"$f":"IFERROR(INDEX(กิจกรรม,SMALL(IF(เป้าหมาย=$D$2,ROW(กิจกรรม)-MIN(ROW(กิจกรรม))+1),ROWS($B$3:B67)))&CHAR(10),\"\")","v":""},null,{"$f":"IFERROR(INDEX(กิจกรรม,SMALL(IF(เป้าหมาย=$F$2,ROW(กิจกรรม)-MIN(ROW(กิจกรรม))+1),ROWS($B$3:B67)))&CHAR(10),\"\")","v":""},null,{"$f":"IFERROR(INDEX(กิจกรรม,SMALL(IF(เป้าหมาย=$H$2,ROW(กิจกรรม)-MIN(ROW(กิจกรรม))+1),ROWS($B$3:B67)))&CHAR(10),\"\")","v":""}]
[null,{"$f":"IFERROR(INDEX(กิจกรรม,SMALL(IF(เป้าหมาย=$B$2,ROW(กิจกรรม)-MIN(ROW(กิจกรรม))+1),ROWS($B$3:B68)))&\" \"&CHAR(10)&(INDEX(ผลลัพธ์,SMALL(IF(เป้าหมาย=$B$2,ROW(ผลลัพธ์)-MIN(ROW(ผลลัพธ์))+1),ROWS($B$3:B68))))&CHAR(10),\"\")","v":""},null,{"$f":"IFERROR(INDEX(กิจกรรม,SMALL(IF(เป้าหมาย=$D$2,ROW(กิจกรรม)-MIN(ROW(กิจกรรม))+1),ROWS($B$3:B68)))&CHAR(10),\"\")","v":""},null,{"$f":"IFERROR(INDEX(กิจกรรม,SMALL(IF(เป้าหมาย=$F$2,ROW(กิจกรรม)-MIN(ROW(กิจกรรม))+1),ROWS($B$3:B68)))&CHAR(10),\"\")","v":""},null,{"$f":"IFERROR(INDEX(กิจกรรม,SMALL(IF(เป้าหมาย=$H$2,ROW(กิจกรรม)-MIN(ROW(กิจกรรม))+1),ROWS($B$3:B68)))&CHAR(10),\"\")","v":""}]
[null,{"$f":"IFERROR(INDEX(กิจกรรม,SMALL(IF(เป้าหมาย=$B$2,ROW(กิจกรรม)-MIN(ROW(กิจกรรม))+1),ROWS($B$3:B69)))&\" \"&CHAR(10)&(INDEX(ผลลัพธ์,SMALL(IF(เป้าหมาย=$B$2,ROW(ผลลัพธ์)-MIN(ROW(ผลลัพธ์))+1),ROWS($B$3:B69))))&CHAR(10),\"\")","v":""},null,{"$f":"IFERROR(INDEX(กิจกรรม,SMALL(IF(เป้าหมาย=$D$2,ROW(กิจกรรม)-MIN(ROW(กิจกรรม))+1),ROWS($B$3:B69)))&CHAR(10),\"\")","v":""},null,{"$f":"IFERROR(INDEX(กิจกรรม,SMALL(IF(เป้าหมาย=$F$2,ROW(กิจกรรม)-MIN(ROW(กิจกรรม))+1),ROWS($B$3:B69)))&CHAR(10),\"\")","v":""},null,{"$f":"IFERROR(INDEX(กิจกรรม,SMALL(IF(เป้าหมาย=$H$2,ROW(กิจกรรม)-MIN(ROW(กิจกรรม))+1),ROWS($B$3:B69)))&CHAR(10),\"\")","v":""}]
[null,{"$f":"IFERROR(INDEX(กิจกรรม,SMALL(IF(เป้าหมาย=$B$2,ROW(กิจกรรม)-MIN(ROW(กิจกรรม))+1),ROWS($B$3:B70)))&\" \"&CHAR(10)&(INDEX(ผลลัพธ์,SMALL(IF(เป้าหมาย=$B$2,ROW(ผลลัพธ์)-MIN(ROW(ผลลัพธ์))+1),ROWS($B$3:B70))))&CHAR(10),\"\")","v":""},null,{"$f":"IFERROR(INDEX(กิจกรรม,SMALL(IF(เป้าหมาย=$D$2,ROW(กิจกรรม)-MIN(ROW(กิจกรรม))+1),ROWS($B$3:B70)))&CHAR(10),\"\")","v":""},null,{"$f":"IFERROR(INDEX(กิจกรรม,SMALL(IF(เป้าหมาย=$F$2,ROW(กิจกรรม)-MIN(ROW(กิจกรรม))+1),ROWS($B$3:B70)))&CHAR(10),\"\")","v":""},null,{"$f":"IFERROR(INDEX(กิจกรรม,SMALL(IF(เป้าหมาย=$H$2,ROW(กิจกรรม)-MIN(ROW(กิจกรรม))+1),ROWS($B$3:B70)))&CHAR(10),\"\")","v":""}]
[null,{"$f":"IFERROR(INDEX(กิจกรรม,SMALL(IF(เป้าหมาย=$B$2,ROW(กิจกรรม)-MIN(ROW(กิจกรรม))+1),ROWS($B$3:B71)))&\" \"&CHAR(10)&(INDEX(ผลลัพธ์,SMALL(IF(เป้าหมาย=$B$2,ROW(ผลลัพธ์)-MIN(ROW(ผลลัพธ์))+1),ROWS($B$3:B71))))&CHAR(10),\"\")","v":""},null,{"$f":"IFERROR(INDEX(กิจกรรม,SMALL(IF(เป้าหมาย=$D$2,ROW(กิจกรรม)-MIN(ROW(กิจกรรม))+1),ROWS($B$3:B71)))&CHAR(10),\"\")","v":""},null,{"$f":"IFERROR(INDEX(กิจกรรม,SMALL(IF(เป้าหมาย=$F$2,ROW(กิจกรรม)-MIN(ROW(กิจกรรม))+1),ROWS($B$3:B71)))&CHAR(10),\"\")","v":""},null,{"$f":"IFERROR(INDEX(กิจกรรม,SMALL(IF(เป้าหมาย=$H$2,ROW(กิจกรรม)-MIN(ROW(กิจกรรม))+1),ROWS($B$3:B71)))&CHAR(10),\"\")","v":""}]
[null,{"$f":"IFERROR(INDEX(กิจกรรม,SMALL(IF(เป้าหมาย=$B$2,ROW(กิจกรรม)-MIN(ROW(กิจกรรม))+1),ROWS($B$3:B72)))&\" \"&CHAR(10)&(INDEX(ผลลัพธ์,SMALL(IF(เป้าหมาย=$B$2,ROW(ผลลัพธ์)-MIN(ROW(ผลลัพธ์))+1),ROWS($B$3:B72))))&CHAR(10),\"\")","v":""},null,{"$f":"IFERROR(INDEX(กิจกรรม,SMALL(IF(เป้าหมาย=$D$2,ROW(กิจกรรม)-MIN(ROW(กิจกรรม))+1),ROWS($B$3:B72)))&CHAR(10),\"\")","v":""},null,{"$f":"IFERROR(INDEX(กิจกรรม,SMALL(IF(เป้าหมาย=$F$2,ROW(กิจกรรม)-MIN(ROW(กิจกรรม))+1),ROWS($B$3:B72)))&CHAR(10),\"\")","v":""},null,{"$f":"IFERROR(INDEX(กิจกรรม,SMALL(IF(เป้าหมาย=$H$2,ROW(กิจกรรม)-MIN(ROW(กิจกรรม))+1),ROWS($B$3:B72)))&CHAR(10),\"\")","v":""}]
[null,{"$f":"IFERROR(INDEX(กิจกรรม,SMALL(IF(เป้าหมาย=$B$2,ROW(กิจกรรม)-MIN(ROW(กิจกรรม))+1),ROWS($B$3:B73)))&\" \"&CHAR(10)&(INDEX(ผลลัพธ์,SMALL(IF(เป้าหมาย=$B$2,ROW(ผลลัพธ์)-MIN(ROW(ผลลัพธ์))+1),ROWS($B$3:B73))))&CHAR(10),\"\")","v":""},null,{"$f":"IFERROR(INDEX(กิจกรรม,SMALL(IF(เป้าหมาย=$D$2,ROW(กิจกรรม)-MIN(ROW(กิจกรรม))+1),ROWS($B$3:B73)))&CHAR(10),\"\")","v":""},null,{"$f":"IFERROR(INDEX(กิจกรรม,SMALL(IF(เป้าหมาย=$F$2,ROW(กิจกรรม)-MIN(ROW(กิจกรรม))+1),ROWS($B$3:B73)))&CHAR(10),\"\")","v":""},null,{"$f":"IFERROR(INDEX(กิจกรรม,SMALL(IF(เป้าหมาย=$H$2,ROW(กิจกรรม)-MIN(ROW(กิจกรรม))+1),ROWS($B$3:B73)))&CHAR(10),\"\")","v":""}]
[null,{"$f":"IFERROR(INDEX(กิจกรรม,SMALL(IF(เป้าหมาย=$B$2,ROW(กิจกรรม)-MIN(ROW(กิจกรรม))+1),ROWS($B$3:B74)))&\" \"&CHAR(10)&(INDEX(ผลลัพธ์,SMALL(IF(เป้าหมาย=$B$2,ROW(ผลลัพธ์)-MIN(ROW(ผลลัพธ์))+1),ROWS($B$3:B74))))&CHAR(10),\"\")","v":""},null,{"$f":"IFERROR(INDEX(กิจกรรม,SMALL(IF(เป้าหมาย=$D$2,ROW(กิจกรรม)-MIN(ROW(กิจกรรม))+1),ROWS($B$3:B74)))&CHAR(10),\"\")","v":""},null,{"$f":"IFERROR(INDEX(กิจกรรม,SMALL(IF(เป้าหมาย=$F$2,ROW(กิจกรรม)-MIN(ROW(กิจกรรม))+1),ROWS($B$3:B74)))&CHAR(10),\"\")","v":""},null,{"$f":"IFERROR(INDEX(กิจกรรม,SMALL(IF(เป้าหมาย=$H$2,ROW(กิจกรรม)-MIN(ROW(กิจกรรม))+1),ROWS($B$3:B74)))&CHAR(10),\"\")","v":""}]
[null,{"$f":"IFERROR(INDEX(กิจกรรม,SMALL(IF(เป้าหมาย=$B$2,ROW(กิจกรรม)-MIN(ROW(กิจกรรม))+1),ROWS($B$3:B75)))&\" \"&CHAR(10)&(INDEX(ผลลัพธ์,SMALL(IF(เป้าหมาย=$B$2,ROW(ผลลัพธ์)-MIN(ROW(ผลลัพธ์))+1),ROWS($B$3:B75))))&CHAR(10),\"\")","v":""},null,{"$f":"IFERROR(INDEX(กิจกรรม,SMALL(IF(เป้าหมาย=$D$2,ROW(กิจกรรม)-MIN(ROW(กิจกรรม))+1),ROWS($B$3:B75)))&CHAR(10),\"\")","v":""},null,{"$f":"IFERROR(INDEX(กิจกรรม,SMALL(IF(เป้าหมาย=$F$2,ROW(กิจกรรม)-MIN(ROW(กิจกรรม))+1),ROWS($B$3:B75)))&CHAR(10),\"\")","v":""},null,{"$f":"IFERROR(INDEX(กิจกรรม,SMALL(IF(เป้าหมาย=$H$2,ROW(กิจกรรม)-MIN(ROW(กิจกรรม))+1),ROWS($B$3:B75)))&CHAR(10),\"\")","v":""}]
[null,{"$f":"IFERROR(INDEX(กิจกรรม,SMALL(IF(เป้าหมาย=$B$2,ROW(กิจกรรม)-MIN(ROW(กิจกรรม))+1),ROWS($B$3:B76)))&\" \"&CHAR(10)&(INDEX(ผลลัพธ์,SMALL(IF(เป้าหมาย=$B$2,ROW(ผลลัพธ์)-MIN(ROW(ผลลัพธ์))+1),ROWS($B$3:B76))))&CHAR(10),\"\")","v":""},null,{"$f":"IFERROR(INDEX(กิจกรรม,SMALL(IF(เป้าหมาย=$D$2,ROW(กิจกรรม)-MIN(ROW(กิจกรรม))+1),ROWS($B$3:B76)))&CHAR(10),\"\")","v":""},null,{"$f":"IFERROR(INDEX(กิจกรรม,SMALL(IF(เป้าหมาย=$F$2,ROW(กิจกรรม)-MIN(ROW(กิจกรรม))+1),ROWS($B$3:B76)))&CHAR(10),\"\")","v":""},null,{"$f":"IFERROR(INDEX(กิจกรรม,SMALL(IF(เป้าหมาย=$H$2,ROW(กิจกรรม)-MIN(ROW(กิจกรรม))+1),ROWS($B$3:B76)))&CHAR(10),\"\")","v":""}]
[null,{"$f":"IFERROR(INDEX(กิจกรรม,SMALL(IF(เป้าหมาย=$B$2,ROW(กิจกรรม)-MIN(ROW(กิจกรรม))+1),ROWS($B$3:B77)))&\" \"&CHAR(10)&(INDEX(ผลลัพธ์,SMALL(IF(เป้าหมาย=$B$2,ROW(ผลลัพธ์)-MIN(ROW(ผลลัพธ์))+1),ROWS($B$3:B77))))&CHAR(10),\"\")","v":""},null,{"$f":"IFERROR(INDEX(กิจกรรม,SMALL(IF(เป้าหมาย=$D$2,ROW(กิจกรรม)-MIN(ROW(กิจกรรม))+1),ROWS($B$3:B77)))&CHAR(10),\"\")","v":""},null,{"$f":"IFERROR(INDEX(กิจกรรม,SMALL(IF(เป้าหมาย=$F$2,ROW(กิจกรรม)-MIN(ROW(กิจกรรม))+1),ROWS($B$3:B77)))&CHAR(10),\"\")","v":""},null,{"$f":"IFERROR(INDEX(กิจกรรม,SMALL(IF(เป้าหมาย=$H$2,ROW(กิจกรรม)-MIN(ROW(กิจกรรม))+1),ROWS($B$3:B77)))&CHAR(10),\"\")","v":""}]
[null,{"$f":"IFERROR(INDEX(กิจกรรม,SMALL(IF(เป้าหมาย=$B$2,ROW(กิจกรรม)-MIN(ROW(กิจกรรม))+1),ROWS($B$3:B78)))&\" \"&CHAR(10)&(INDEX(ผลลัพธ์,SMALL(IF(เป้าหมาย=$B$2,ROW(ผลลัพธ์)-MIN(ROW(ผลลัพธ์))+1),ROWS($B$3:B78))))&CHAR(10),\"\")","v":""},null,{"$f":"IFERROR(INDEX(กิจกรรม,SMALL(IF(เป้าหมาย=$D$2,ROW(กิจกรรม)-MIN(ROW(กิจกรรม))+1),ROWS($B$3:B78)))&CHAR(10),\"\")","v":""},null,{"$f":"IFERROR(INDEX(กิจกรรม,SMALL(IF(เป้าหมาย=$F$2,ROW(กิจกรรม)-MIN(ROW(กิจกรรม))+1),ROWS($B$3:B78)))&CHAR(10),\"\")","v":""},null,{"$f":"IFERROR(INDEX(กิจกรรม,SMALL(IF(เป้าหมาย=$H$2,ROW(กิจกรรม)-MIN(ROW(กิจกรรม))+1),ROWS($B$3:B78)))&CHAR(10),\"\")","v":""}]
[null,{"$f":"IFERROR(INDEX(กิจกรรม,SMALL(IF(เป้าหมาย=$B$2,ROW(กิจกรรม)-MIN(ROW(กิจกรรม))+1),ROWS($B$3:B79)))&\" \"&CHAR(10)&(INDEX(ผลลัพธ์,SMALL(IF(เป้าหมาย=$B$2,ROW(ผลลัพธ์)-MIN(ROW(ผลลัพธ์))+1),ROWS($B$3:B79))))&CHAR(10),\"\")","v":""},null,{"$f":"IFERROR(INDEX(กิจกรรม,SMALL(IF(เป้าหมาย=$D$2,ROW(กิจกรรม)-MIN(ROW(กิจกรรม))+1),ROWS($B$3:B79)))&CHAR(10),\"\")","v":""},null,{"$f":"IFERROR(INDEX(กิจกรรม,SMALL(IF(เป้าหมาย=$F$2,ROW(กิจกรรม)-MIN(ROW(กิจกรรม))+1),ROWS($B$3:B79)))&CHAR(10),\"\")","v":""},null,{"$f":"IFERROR(INDEX(กิจกรรม,SMALL(IF(เป้าหมาย=$H$2,ROW(กิจกรรม)-MIN(ROW(กิจกรรม))+1),ROWS($B$3:B79)))&CHAR(10),\"\")","v":""}]
[null,{"$f":"IFERROR(INDEX(กิจกรรม,SMALL(IF(เป้าหมาย=$B$2,ROW(กิจกรรม)-MIN(ROW(กิจกรรม))+1),ROWS($B$3:B80)))&\" \"&CHAR(10)&(INDEX(ผลลัพธ์,SMALL(IF(เป้าหมาย=$B$2,ROW(ผลลัพธ์)-MIN(ROW(ผลลัพธ์))+1),ROWS($B$3:B80))))&CHAR(10),\"\")","v":""},null,{"$f":"IFERROR(INDEX(กิจกรรม,SMALL(IF(เป้าหมาย=$D$2,ROW(กิจกรรม)-MIN(ROW(กิจกรรม))+1),ROWS($B$3:B80)))&CHAR(10),\"\")","v":""},null,{"$f":"IFERROR(INDEX(กิจกรรม,SMALL(IF(เป้าหมาย=$F$2,ROW(กิจกรรม)-MIN(ROW(กิจกรรม))+1),ROWS($B$3:B80)))&CHAR(10),\"\")","v":""},null,{"$f":"IFERROR(INDEX(กิจกรรม,SMALL(IF(เป้าหมาย=$H$2,ROW(กิจกรรม)-MIN(ROW(กิจกรรม))+1),ROWS($B$3:B80)))&CHAR(10),\"\")","v":""}]
[null,{"$f":"IFERROR(INDEX(กิจกรรม,SMALL(IF(เป้าหมาย=$B$2,ROW(กิจกรรม)-MIN(ROW(กิจกรรม))+1),ROWS($B$3:B81)))&\" \"&CHAR(10)&(INDEX(ผลลัพธ์,SMALL(IF(เป้าหมาย=$B$2,ROW(ผลลัพธ์)-MIN(ROW(ผลลัพธ์))+1),ROWS($B$3:B81))))&CHAR(10),\"\")","v":""},null,{"$f":"IFERROR(INDEX(กิจกรรม,SMALL(IF(เป้าหมาย=$D$2,ROW(กิจกรรม)-MIN(ROW(กิจกรรม))+1),ROWS($B$3:B81)))&CHAR(10),\"\")","v":""},null,{"$f":"IFERROR(INDEX(กิจกรรม,SMALL(IF(เป้าหมาย=$F$2,ROW(กิจกรรม)-MIN(ROW(กิจกรรม))+1),ROWS($B$3:B81)))&CHAR(10),\"\")","v":""},null,{"$f":"IFERROR(INDEX(กิจกรรม,SMALL(IF(เป้าหมาย=$H$2,ROW(กิจกรรม)-MIN(ROW(กิจกรรม))+1),ROWS($B$3:B81)))&CHAR(10),\"\")","v":""}]
[null,{"$f":"IFERROR(INDEX(กิจกรรม,SMALL(IF(เป้าหมาย=$B$2,ROW(กิจกรรม)-MIN(ROW(กิจกรรม))+1),ROWS($B$3:B82)))&\" \"&CHAR(10)&(INDEX(ผลลัพธ์,SMALL(IF(เป้าหมาย=$B$2,ROW(ผลลัพธ์)-MIN(ROW(ผลลัพธ์))+1),ROWS($B$3:B82))))&CHAR(10),\"\")","v":""},null,{"$f":"IFERROR(INDEX(กิจกรรม,SMALL(IF(เป้าหมาย=$D$2,ROW(กิจกรรม)-MIN(ROW(กิจกรรม))+1),ROWS($B$3:B82)))&CHAR(10),\"\")","v":""},null,{"$f":"IFERROR(INDEX(กิจกรรม,SMALL(IF(เป้าหมาย=$F$2,ROW(กิจกรรม)-MIN(ROW(กิจกรรม))+1),ROWS($B$3:B82)))&CHAR(10),\"\")","v":""},null,{"$f":"IFERROR(INDEX(กิจกรรม,SMALL(IF(เป้าหมาย=$H$2,ROW(กิจกรรม)-MIN(ROW(กิจกรรม))+1),ROWS($B$3:B82)))&CHAR(10),\"\")","v":""}]
[null,{"$f":"IFERROR(INDEX(กิจกรรม,SMALL(IF(เป้าหมาย=$B$2,ROW(กิจกรรม)-MIN(ROW(กิจกรรม))+1),ROWS($B$3:B83)))&\" \"&CHAR(10)&(INDEX(ผลลัพธ์,SMALL(IF(เป้าหมาย=$B$2,ROW(ผลลัพธ์)-MIN(ROW(ผลลัพธ์))+1),ROWS($B$3:B83))))&CHAR(10),\"\")","v":""},null,{"$f":"IFERROR(INDEX(กิจกรรม,SMALL(IF(เป้าหมาย=$D$2,ROW(กิจกรรม)-MIN(ROW(กิจกรรม))+1),ROWS($B$3:B83)))&CHAR(10),\"\")","v":""},null,{"$f":"IFERROR(INDEX(กิจกรรม,SMALL(IF(เป้าหมาย=$F$2,ROW(กิจกรรม)-MIN(ROW(กิจกรรม))+1),ROWS($B$3:B83)))&CHAR(10),\"\")","v":""},null,{"$f":"IFERROR(INDEX(กิจกรรม,SMALL(IF(เป้าหมาย=$H$2,ROW(กิจกรรม)-MIN(ROW(กิจกรรม))+1),ROWS($B$3:B83)))&CHAR(10),\"\")","v":""}]
[null,{"$f":"IFERROR(INDEX(กิจกรรม,SMALL(IF(เป้าหมาย=$B$2,ROW(กิจกรรม)-MIN(ROW(กิจกรรม))+1),ROWS($B$3:B84)))&\" \"&CHAR(10)&(INDEX(ผลลัพธ์,SMALL(IF(เป้าหมาย=$B$2,ROW(ผลลัพธ์)-MIN(ROW(ผลลัพธ์))+1),ROWS($B$3:B84))))&CHAR(10),\"\")","v":""},null,{"$f":"IFERROR(INDEX(กิจกรรม,SMALL(IF(เป้าหมาย=$D$2,ROW(กิจกรรม)-MIN(ROW(กิจกรรม))+1),ROWS($B$3:B84)))&CHAR(10),\"\")","v":""},null,{"$f":"IFERROR(INDEX(กิจกรรม,SMALL(IF(เป้าหมาย=$F$2,ROW(กิจกรรม)-MIN(ROW(กิจกรรม))+1),ROWS($B$3:B84)))&CHAR(10),\"\")","v":""},null,{"$f":"IFERROR(INDEX(กิจกรรม,SMALL(IF(เป้าหมาย=$H$2,ROW(กิจกรรม)-MIN(ROW(กิจกรรม))+1),ROWS($B$3:B84)))&CHAR(10),\"\")","v":""}]
[null,{"$f":"IFERROR(INDEX(กิจกรรม,SMALL(IF(เป้าหมาย=$B$2,ROW(กิจกรรม)-MIN(ROW(กิจกรรม))+1),ROWS($B$3:B85)))&\" \"&CHAR(10)&(INDEX(ผลลัพธ์,SMALL(IF(เป้าหมาย=$B$2,ROW(ผลลัพธ์)-MIN(ROW(ผลลัพธ์))+1),ROWS($B$3:B85))))&CHAR(10),\"\")","v":""},null,{"$f":"IFERROR(INDEX(กิจกรรม,SMALL(IF(เป้าหมาย=$D$2,ROW(กิจกรรม)-MIN(ROW(กิจกรรม))+1),ROWS($B$3:B85)))&CHAR(10),\"\")","v":""},null,{"$f":"IFERROR(INDEX(กิจกรรม,SMALL(IF(เป้าหมาย=$F$2,ROW(กิจกรรม)-MIN(ROW(กิจกรรม))+1),ROWS($B$3:B85)))&CHAR(10),\"\")","v":""},null,{"$f":"IFERROR(INDEX(กิจกรรม,SMALL(IF(เป้าหมาย=$H$2,ROW(กิจกรรม)-MIN(ROW(กิจกรรม))+1),ROWS($B$3:B85)))&CHAR(10),\"\")","v":""}]
[null,{"$f":"IFERROR(INDEX(กิจกรรม,SMALL(IF(เป้าหมาย=$B$2,ROW(กิจกรรม)-MIN(ROW(กิจกรรม))+1),ROWS($B$3:B86)))&\" \"&CHAR(10)&(INDEX(ผลลัพธ์,SMALL(IF(เป้าหมาย=$B$2,ROW(ผลลัพธ์)-MIN(ROW(ผลลัพธ์))+1),ROWS($B$3:B86))))&CHAR(10),\"\")","v":""},null,{"$f":"IFERROR(INDEX(กิจกรรม,SMALL(IF(เป้าหมาย=$D$2,ROW(กิจกรรม)-MIN(ROW(กิจกรรม))+1),ROWS($B$3:B86)))&CHAR(10),\"\")","v":""},null,{"$f":"IFERROR(INDEX(กิจกรรม,SMALL(IF(เป้าหมาย=$F$2,ROW(กิจกรรม)-MIN(ROW(กิจกรรม))+1),ROWS($B$3:B86)))&CHAR(10),\"\")","v":""},null,{"$f":"IFERROR(INDEX(กิจกรรม,SMALL(IF(เป้าหมาย=$H$2,ROW(กิจกรรม)-MIN(ROW(กิจกรรม))+1),ROWS($B$3:B86)))&CHAR(10),\"\")","v":""}]
[null,{"$f":"IFERROR(INDEX(กิจกรรม,SMALL(IF(เป้าหมาย=$B$2,ROW(กิจกรรม)-MIN(ROW(กิจกรรม))+1),ROWS($B$3:B87)))&\" \"&CHAR(10)&(INDEX(ผลลัพธ์,SMALL(IF(เป้าหมาย=$B$2,ROW(ผลลัพธ์)-MIN(ROW(ผลลัพธ์))+1),ROWS($B$3:B87))))&CHAR(10),\"\")","v":""},null,{"$f":"IFERROR(INDEX(กิจกรรม,SMALL(IF(เป้าหมาย=$D$2,ROW(กิจกรรม)-MIN(ROW(กิจกรรม))+1),ROWS($B$3:B87)))&CHAR(10),\"\")","v":""},null,{"$f":"IFERROR(INDEX(กิจกรรม,SMALL(IF(เป้าหมาย=$F$2,ROW(กิจกรรม)-MIN(ROW(กิจกรรม))+1),ROWS($B$3:B87)))&CHAR(10),\"\")","v":""},null,{"$f":"IFERROR(INDEX(กิจกรรม,SMALL(IF(เป้าหมาย=$H$2,ROW(กิจกรรม)-MIN(ROW(กิจกรรม))+1),ROWS($B$3:B87)))&CHAR(10),\"\")","v":""}]
[null,{"$f":"IFERROR(INDEX(กิจกรรม,SMALL(IF(เป้าหมาย=$B$2,ROW(กิจกรรม)-MIN(ROW(กิจกรรม))+1),ROWS($B$3:B88)))&\" \"&CHAR(10)&(INDEX(ผลลัพธ์,SMALL(IF(เป้าหมาย=$B$2,ROW(ผลลัพธ์)-MIN(ROW(ผลลัพธ์))+1),ROWS($B$3:B88))))&CHAR(10),\"\")","v":""},null,{"$f":"IFERROR(INDEX(กิจกรรม,SMALL(IF(เป้าหมาย=$D$2,ROW(กิจกรรม)-MIN(ROW(กิจกรรม))+1),ROWS($B$3:B88)))&CHAR(10),\"\")","v":""},null,{"$f":"IFERROR(INDEX(กิจกรรม,SMALL(IF(เป้าหมาย=$F$2,ROW(กิจกรรม)-MIN(ROW(กิจกรรม))+1),ROWS($B$3:B88)))&CHAR(10),\"\")","v":""},null,{"$f":"IFERROR(INDEX(กิจกรรม,SMALL(IF(เป้าหมาย=$H$2,ROW(กิจกรรม)-MIN(ROW(กิจกรรม))+1),ROWS($B$3:B88)))&CHAR(10),\"\")","v":""}]
[null,{"$f":"IFERROR(INDEX(กิจกรรม,SMALL(IF(เป้าหมาย=$B$2,ROW(กิจกรรม)-MIN(ROW(กิจกรรม))+1),ROWS($B$3:B89)))&\" \"&CHAR(10)&(INDEX(ผลลัพธ์,SMALL(IF(เป้าหมาย=$B$2,ROW(ผลลัพธ์)-MIN(ROW(ผลลัพธ์))+1),ROWS($B$3:B89))))&CHAR(10),\"\")","v":""},null,{"$f":"IFERROR(INDEX(กิจกรรม,SMALL(IF(เป้าหมาย=$D$2,ROW(กิจกรรม)-MIN(ROW(กิจกรรม))+1),ROWS($B$3:B89)))&CHAR(10),\"\")","v":""},null,{"$f":"IFERROR(INDEX(กิจกรรม,SMALL(IF(เป้าหมาย=$F$2,ROW(กิจกรรม)-MIN(ROW(กิจกรรม))+1),ROWS($B$3:B89)))&CHAR(10),\"\")","v":""},null,{"$f":"IFERROR(INDEX(กิจกรรม,SMALL(IF(เป้าหมาย=$H$2,ROW(กิจกรรม)-MIN(ROW(กิจกรรม))+1),ROWS($B$3:B89)))&CHAR(10),\"\")","v":""}]
[null,{"$f":"IFERROR(INDEX(กิจกรรม,SMALL(IF(เป้าหมาย=$B$2,ROW(กิจกรรม)-MIN(ROW(กิจกรรม))+1),ROWS($B$3:B90)))&\" \"&CHAR(10)&(INDEX(ผลลัพธ์,SMALL(IF(เป้าหมาย=$B$2,ROW(ผลลัพธ์)-MIN(ROW(ผลลัพธ์))+1),ROWS($B$3:B90))))&CHAR(10),\"\")","v":""},null,{"$f":"IFERROR(INDEX(กิจกรรม,SMALL(IF(เป้าหมาย=$D$2,ROW(กิจกรรม)-MIN(ROW(กิจกรรม))+1),ROWS($B$3:B90)))&CHAR(10),\"\")","v":""},null,{"$f":"IFERROR(INDEX(กิจกรรม,SMALL(IF(เป้าหมาย=$F$2,ROW(กิจกรรม)-MIN(ROW(กิจกรรม))+1),ROWS($B$3:B90)))&CHAR(10),\"\")","v":""},null,{"$f":"IFERROR(INDEX(กิจกรรม,SMALL(IF(เป้าหมาย=$H$2,ROW(กิจกรรม)-MIN(ROW(กิจกรรม))+1),ROWS($B$3:B90)))&CHAR(10),\"\")","v":""}]
[null,{"$f":"IFERROR(INDEX(กิจกรรม,SMALL(IF(เป้าหมาย=$B$2,ROW(กิจกรรม)-MIN(ROW(กิจกรรม))+1),ROWS($B$3:B91)))&\" \"&CHAR(10)&(INDEX(ผลลัพธ์,SMALL(IF(เป้าหมาย=$B$2,ROW(ผลลัพธ์)-MIN(ROW(ผลลัพธ์))+1),ROWS($B$3:B91))))&CHAR(10),\"\")","v":""},null,{"$f":"IFERROR(INDEX(กิจกรรม,SMALL(IF(เป้าหมาย=$D$2,ROW(กิจกรรม)-MIN(ROW(กิจกรรม))+1),ROWS($B$3:B91)))&CHAR(10),\"\")","v":""},null,{"$f":"IFERROR(INDEX(กิจกรรม,SMALL(IF(เป้าหมาย=$F$2,ROW(กิจกรรม)-MIN(ROW(กิจกรรม))+1),ROWS($B$3:B91)))&CHAR(10),\"\")","v":""},null,{"$f":"IFERROR(INDEX(กิจกรรม,SMALL(IF(เป้าหมาย=$H$2,ROW(กิจกรรม)-MIN(ROW(กิจกรรม))+1),ROWS($B$3:B91)))&CHAR(10),\"\")","v":""}]
[null,{"$f":"IFERROR(INDEX(กิจกรรม,SMALL(IF(เป้าหมาย=$B$2,ROW(กิจกรรม)-MIN(ROW(กิจกรรม))+1),ROWS($B$3:B92)))&\" \"&CHAR(10)&(INDEX(ผลลัพธ์,SMALL(IF(เป้าหมาย=$B$2,ROW(ผลลัพธ์)-MIN(ROW(ผลลัพธ์))+1),ROWS($B$3:B92))))&CHAR(10),\"\")","v":""},null,{"$f":"IFERROR(INDEX(กิจกรรม,SMALL(IF(เป้าหมาย=$D$2,ROW(กิจกรรม)-MIN(ROW(กิจกรรม))+1),ROWS($B$3:B92)))&CHAR(10),\"\")","v":""},null,{"$f":"IFERROR(INDEX(กิจกรรม,SMALL(IF(เป้าหมาย=$F$2,ROW(กิจกรรม)-MIN(ROW(กิจกรรม))+1),ROWS($B$3:B92)))&CHAR(10),\"\")","v":""},null,{"$f":"IFERROR(INDEX(กิจกรรม,SMALL(IF(เป้าหมาย=$H$2,ROW(กิจกรรม)-MIN(ROW(กิจกรรม))+1),ROWS($B$3:B92)))&CHAR(10),\"\")","v":""}]
[null,{"$f":"IFERROR(INDEX(กิจกรรม,SMALL(IF(เป้าหมาย=$B$2,ROW(กิจกรรม)-MIN(ROW(กิจกรรม))+1),ROWS($B$3:B93)))&\" \"&CHAR(10)&(INDEX(ผลลัพธ์,SMALL(IF(เป้าหมาย=$B$2,ROW(ผลลัพธ์)-MIN(ROW(ผลลัพธ์))+1),ROWS($B$3:B93))))&CHAR(10),\"\")","v":""},null,{"$f":"IFERROR(INDEX(กิจกรรม,SMALL(IF(เป้าหมาย=$D$2,ROW(กิจกรรม)-MIN(ROW(กิจกรรม))+1),ROWS($B$3:B93)))&CHAR(10),\"\")","v":""},null,{"$f":"IFERROR(INDEX(กิจกรรม,SMALL(IF(เป้าหมาย=$F$2,ROW(กิจกรรม)-MIN(ROW(กิจกรรม))+1),ROWS($B$3:B93)))&CHAR(10),\"\")","v":""},null,{"$f":"IFERROR(INDEX(กิจกรรม,SMALL(IF(เป้าหมาย=$H$2,ROW(กิจกรรม)-MIN(ROW(กิจกรรม))+1),ROWS($B$3:B93)))&CHAR(10),\"\")","v":""}]
[null,{"$f":"IFERROR(INDEX(กิจกรรม,SMALL(IF(เป้าหมาย=$B$2,ROW(กิจกรรม)-MIN(ROW(กิจกรรม))+1),ROWS($B$3:B94)))&\" \"&CHAR(10)&(INDEX(ผลลัพธ์,SMALL(IF(เป้าหมาย=$B$2,ROW(ผลลัพธ์)-MIN(ROW(ผลลัพธ์))+1),ROWS($B$3:B94))))&CHAR(10),\"\")","v":""},null,{"$f":"IFERROR(INDEX(กิจกรรม,SMALL(IF(เป้าหมาย=$D$2,ROW(กิจกรรม)-MIN(ROW(กิจกรรม))+1),ROWS($B$3:B94)))&CHAR(10),\"\")","v":""},null,{"$f":"IFERROR(INDEX(กิจกรรม,SMALL(IF(เป้าหมาย=$F$2,ROW(กิจกรรม)-MIN(ROW(กิจกรรม))+1),ROWS($B$3:B94)))&CHAR(10),\"\")","v":""},null,{"$f":"IFERROR(INDEX(กิจกรรม,SMALL(IF(เป้าหมาย=$H$2,ROW(กิจกรรม)-MIN(ROW(กิจกรรม))+1),ROWS($B$3:B94)))&CHAR(10),\"\")","v":""}]
[null,{"$f":"IFERROR(INDEX(กิจกรรม,SMALL(IF(เป้าหมาย=$B$2,ROW(กิจกรรม)-MIN(ROW(กิจกรรม))+1),ROWS($B$3:B95)))&\" \"&CHAR(10)&(INDEX(ผลลัพธ์,SMALL(IF(เป้าหมาย=$B$2,ROW(ผลลัพธ์)-MIN(ROW(ผลลัพธ์))+1),ROWS($B$3:B95))))&CHAR(10),\"\")","v":""},null,{"$f":"IFERROR(INDEX(กิจกรรม,SMALL(IF(เป้าหมาย=$D$2,ROW(กิจกรรม)-MIN(ROW(กิจกรรม))+1),ROWS($B$3:B95)))&CHAR(10),\"\")","v":""},null,{"$f":"IFERROR(INDEX(กิจกรรม,SMALL(IF(เป้าหมาย=$F$2,ROW(กิจกรรม)-MIN(ROW(กิจกรรม))+1),ROWS($B$3:B95)))&CHAR(10),\"\")","v":""},null,{"$f":"IFERROR(INDEX(กิจกรรม,SMALL(IF(เป้าหมาย=$H$2,ROW(กิจกรรม)-MIN(ROW(กิจกรรม))+1),ROWS($B$3:B95)))&CHAR(10),\"\")","v":""}]
[null,{"$f":"IFERROR(INDEX(กิจกรรม,SMALL(IF(เป้าหมาย=$B$2,ROW(กิจกรรม)-MIN(ROW(กิจกรรม))+1),ROWS($B$3:B96)))&\" \"&CHAR(10)&(INDEX(ผลลัพธ์,SMALL(IF(เป้าหมาย=$B$2,ROW(ผลลัพธ์)-MIN(ROW(ผลลัพธ์))+1),ROWS($B$3:B96))))&CHAR(10),\"\")","v":""},null,{"$f":"IFERROR(INDEX(กิจกรรม,SMALL(IF(เป้าหมาย=$D$2,ROW(กิจกรรม)-MIN(ROW(กิจกรรม))+1),ROWS($B$3:B96)))&CHAR(10),\"\")","v":""},null,{"$f":"IFERROR(INDEX(กิจกรรม,SMALL(IF(เป้าหมาย=$F$2,ROW(กิจกรรม)-MIN(ROW(กิจกรรม))+1),ROWS($B$3:B96)))&CHAR(10),\"\")","v":""},null,{"$f":"IFERROR(INDEX(กิจกรรม,SMALL(IF(เป้าหมาย=$H$2,ROW(กิจกรรม)-MIN(ROW(กิจกรรม))+1),ROWS($B$3:B96)))&CHAR(10),\"\")","v":""}]
[null,{"$f":"IFERROR(INDEX(กิจกรรม,SMALL(IF(เป้าหมาย=$B$2,ROW(กิจกรรม)-MIN(ROW(กิจกรรม))+1),ROWS($B$3:B97)))&\" \"&CHAR(10)&(INDEX(ผลลัพธ์,SMALL(IF(เป้าหมาย=$B$2,ROW(ผลลัพธ์)-MIN(ROW(ผลลัพธ์))+1),ROWS($B$3:B97))))&CHAR(10),\"\")","v":""},null,{"$f":"IFERROR(INDEX(กิจกรรม,SMALL(IF(เป้าหมาย=$D$2,ROW(กิจกรรม)-MIN(ROW(กิจกรรม))+1),ROWS($B$3:B97)))&CHAR(10),\"\")","v":""},null,{"$f":"IFERROR(INDEX(กิจกรรม,SMALL(IF(เป้าหมาย=$F$2,ROW(กิจกรรม)-MIN(ROW(กิจกรรม))+1),ROWS($B$3:B97)))&CHAR(10),\"\")","v":""},null,{"$f":"IFERROR(INDEX(กิจกรรม,SMALL(IF(เป้าหมาย=$H$2,ROW(กิจกรรม)-MIN(ROW(กิจกรรม))+1),ROWS($B$3:B97)))&CHAR(10),\"\")","v":""}]
[null,{"$f":"IFERROR(INDEX(กิจกรรม,SMALL(IF(เป้าหมาย=$B$2,ROW(กิจกรรม)-MIN(ROW(กิจกรรม))+1),ROWS($B$3:B98)))&\" \"&CHAR(10)&(INDEX(ผลลัพธ์,SMALL(IF(เป้าหมาย=$B$2,ROW(ผลลัพธ์)-MIN(ROW(ผลลัพธ์))+1),ROWS($B$3:B98))))&CHAR(10),\"\")","v":""},null,{"$f":"IFERROR(INDEX(กิจกรรม,SMALL(IF(เป้าหมาย=$D$2,ROW(กิจกรรม)-MIN(ROW(กิจกรรม))+1),ROWS($B$3:B98)))&CHAR(10),\"\")","v":""},null,{"$f":"IFERROR(INDEX(กิจกรรม,SMALL(IF(เป้าหมาย=$F$2,ROW(กิจกรรม)-MIN(ROW(กิจกรรม))+1),ROWS($B$3:B98)))&CHAR(10),\"\")","v":""},null,{"$f":"IFERROR(INDEX(กิจกรรม,SMALL(IF(เป้าหมาย=$H$2,ROW(กิจกรรม)-MIN(ROW(กิจกรรม))+1),ROWS($B$3:B98)))&CHAR(10),\"\")","v":""}]
[null,{"$f":"IFERROR(INDEX(กิจกรรม,SMALL(IF(เป้าหมาย=$B$2,ROW(กิจกรรม)-MIN(ROW(กิจกรรม))+1),ROWS($B$3:B99)))&\" \"&CHAR(10)&(INDEX(ผลลัพธ์,SMALL(IF(เป้าหมาย=$B$2,ROW(ผลลัพธ์)-MIN(ROW(ผลลัพธ์))+1),ROWS($B$3:B99))))&CHAR(10),\"\")","v":""},null,{"$f":"IFERROR(INDEX(กิจกรรม,SMALL(IF(เป้าหมาย=$D$2,ROW(กิจกรรม)-MIN(ROW(กิจกรรม))+1),ROWS($B$3:B99)))&CHAR(10),\"\")","v":""},null,{"$f":"IFERROR(INDEX(กิจกรรม,SMALL(IF(เป้าหมาย=$F$2,ROW(กิจกรรม)-MIN(ROW(กิจกรรม))+1),ROWS($B$3:B99)))&CHAR(10),\"\")","v":""},null,{"$f":"IFERROR(INDEX(กิจกรรม,SMALL(IF(เป้าหมาย=$H$2,ROW(กิจกรรม)-MIN(ROW(กิจกรรม))+1),ROWS($B$3:B99)))&CHAR(10),\"\")","v":""}]
[null,{"$f":"IFERROR(INDEX(กิจกรรม,SMALL(IF(เป้าหมาย=$B$2,ROW(กิจกรรม)-MIN(ROW(กิจกรรม))+1),ROWS($B$3:B100)))&\" \"&CHAR(10)&(INDEX(ผลลัพธ์,SMALL(IF(เป้าหมาย=$B$2,ROW(ผลลัพธ์)-MIN(ROW(ผลลัพธ์))+1),ROWS($B$3:B100))))&CHAR(10),\"\")","v":""},null,{"$f":"IFERROR(INDEX(กิจกรรม,SMALL(IF(เป้าหมาย=$D$2,ROW(กิจกรรม)-MIN(ROW(กิจกรรม))+1),ROWS($B$3:B100)))&CHAR(10),\"\")","v":""},null,{"$f":"IFERROR(INDEX(กิจกรรม,SMALL(IF(เป้าหมาย=$F$2,ROW(กิจกรรม)-MIN(ROW(กิจกรรม))+1),ROWS($B$3:B100)))&CHAR(10),\"\")","v":""},null,{"$f":"IFERROR(INDEX(กิจกรรม,SMALL(IF(เป้าหมาย=$H$2,ROW(กิจกรรม)-MIN(ROW(กิจกรรม))+1),ROWS($B$3:B100)))&CHAR(10),\"\")","v":""}]

{"sheet":"เกี่ยวกับ","index":2,"n_rows":6,"n_cols":1,"rows_kept":6}
["เกี่ยวกับเวิร์กบุ๊กนี้"]
["คำแนะนำสำหรับโปรแกรมอ่านหน้าจอ:"]
["มี 3 เวิร์กชีตอยู่ในเวิร์กบุ๊กนี้ \n\nข้อมูลแผนการทำงาน\nแผนการทำงาน Agile\nเกี่ยวกับ\n\nคำแนะนำสำหรับแต่ละเวิร์กชีตจะอยู่ในคอลัมน์ A โดยเริ่มจากเซลล์ A1 ของแต่ละเวิร์กชีต ซึ่งจะถูกเขียนด้วยข้อความที่ซ่อน แต่ละขั้นตอนจะแนะนำคุณผ่านข้อมูลในแถวนั้น ขั้นตอนแต่ละขั้นที่ตามมายังคงอยู่ในเซลล์ A2, A3 และอื่นๆ ต่อไป เว้นแต่ว่าจะมีคำสั่งที่ชัดแจ้ง ตัวอย่างเช่น ข้อความคำแนะนำอาจพูดว่า \"ทำต่อไปที่เซลล์ A6\" สำหรับขั้นตอนถัดไป \n\nข้อความที่ซ่อนจะไม่ถูกพิมพ์\n\nเมื่อต้องการลบคำแนะนำเหล่านี้ออกจากเวิร์กชีตใดๆ ให้ทำเพียงแค่ลบคอลัมน์ A ออก\n"]
["เกี่ยวกับเวิร์กบุ๊กนี้"]
["ใส่ข้อมูลหลักเป้าหมายในเวิร์กชีตข้อมูลแผนการทำงาน ตรวจสอบให้แน่ใจว่ามีการเรียงลำดับตามความสำคัญตามตามหลักเป้าหมายในการจับภาพมึมมองที่เสร็จสมบูรณ์ เป็นปัจจุบัน ระยะเวลาอันใกล้ และมุมมองอนาคตที่ลดลำดับความสำคัญ ซึ่งมีรายการลำดับความสำคัญสูงสุดที่แสดงที่ด้านบน แผนการทำงานในแผ่นงานแผนการทำงาน Agile ได้รับการอัปเดตโดยอัตโนมัติ\n"]
["นี่คือคำแนะนำสุดท้ายในเวิร์กชีตนี้"]